Cogmind - Beta 12 @@@ ROGUE MODE // 2023.05.12 @ 04:12:34 Player: maxwell Result: Self-destructed Performance ------------- Evolutions (9) 4500 Regions Visited (34) 6800 Robots Destroyed (579) 2895 Value Destroyed (31055) 31055 Prototype IDs (91) 1820 Alien Tech Used (6) 1200 Bonus (15040) 15040 TOTAL SCORE: 63310 Bonus ------- High Alert Combat Kills 2533 Follower Combat Kills 1472 Network Hubs Disabled 400 Destroyed Z-Imprinter 1000 Met Zhirov 300 Met Warlord at Base 500 MAIN.C Attacked Warlord 500 Warlord Defense Kills 3536 A7 Reached Mainframe 300 Met R17 at Cetus 500 Met Warlord at Research 2000 Invited to Help at Command 2000 Scanned by Researcher 500 Pursued by Intercept 500 Friendly Fire -1001 Cogmind --------- Core Integrity 1443/1600 Matter 292/300 Energy 415/415 System Corruption 8% Temperature Cool (0) Movement Immobile (Siege) Location -1/Access Parts ------- > --- POWER (2) -------- Reinforced Antimatter Reactor Light Quantum Reactor > --- PROPULSION (6) --- Enhanced Armored Heavy Treads Enhanced Armored Heavy Treads Enhanced Armored Heavy Treads > --- UTILITY (15) ----- Experimental Heat Sink High-capacity Storage Unit Advanced Signal Interpreter Experimental Targeting Computer Experimental Target Analyzer Experimental Core Analyzer Centrium Medium Armor Plating Centrium Medium Armor Plating SHELL Armor Point Defense Array > --- WEAPON (2) ------- Enhanced Quantum Rifle Matter Neutralizer > --- INVENTORY (20) --- Matter Drive Armored Heavy Treads Improved Heavy Siege Treads Improved Heavy Siege Treads Improved Matter Compressor (300) Surveybot 24 Scanner Long-range Tractor Beam Hacking Drone Bay (1/1) Dimensional Node Initializer Subatomic Replicator Terrabomb Terrabomb Firepult Core Stripper Peak State ------------ > --- POWER ------------ Vortex Chain Reactor > --- PROPULSION ------- Biometal Heavy Treads Enhanced Armored Heavy Treads Enhanced Armored Heavy Treads > --- UTILITY ---------- Experimental Heat Sink Coolant Network Cargo Storage Unit Advanced Trap Scanner Advanced Sensor Array Advanced Signal Interpreter Experimental Targeting Computer Experimental Target Analyzer Experimental Core Analyzer SHELL Armor Thermal Barrier > --- WEAPON ----------- Heavy Quantum Rifle Improved Matter Neutralizer > --- INVENTORY -------- Matter Drive Enhanced Armored Heavy Treads Enhanced Armored Heavy Treads Enhanced Armored Heavy Treads High-capacity Storage Unit Improved Matter Compressor Gravity Neutralizer Improved Signal Interpreter Surveybot 24 Scanner Centrium Medium Armor Plating Centrium Medium Armor Plating Point Defense Array Long-range Tractor Beam Hacking Drone Bay Dimensional Node Initializer Integrated Dissipator Subatomic Replicator Terrabomb Terrabomb Enhanced Quantum Rifle Matter Neutralizer Firepult Core Stripper GAL Module [Rating: 238] Favorites ----------- Power Improved Deuterium Engine Engine Improved Deuterium Engine Power Core Neutrino Core Reactor Compact Particle Reactor Propulsion Armored Huge Wheel Treads Enhanced Armored Heavy Treads Leg Assembled Alloy Leg Wheel Armored Huge Wheel Utility Cargo Storage Unit Device Experimental Heat Sink Storage Cargo Storage Unit Processor Advanced Signal Interpreter Hackware Hacking Suite Protection Centrium Medium Armor Plating Weapon Plasma Cannon Energy Gun Heavy Gatling Laser Energy Cannon Plasma Cannon Ballistic Gun Improved Assault Rifle Ballistic Cannon Enhanced Gauss Cannon Launcher Long-range Missile Launcher Impact Weapon Core Stripper Slashing Weapon Power Sword Build | -11 -10 -10 -9 -9 -9 -8 -8 -7 -7 -7 -7 -7 -6 -6 -6 -6 -6 -6 -5 -5 -5 -5 -4 -4 -4 -4 -4 -3 -3 -3 -2 -2 -2 -1 ------- Run | Jun Mat Min Mat Min Exi Min Mat Fac Low Low Zio Dee Pro Fac Ext Cet Arc Hub Fac Upp Upp Zhi Pro Fac Upp Upp War Pro Res Qua Res Tes Sec Acc Slots Evolved 18 | . . . 2 . . . 2 2 . . . . . 2 . . . . 2 . . . . 2 . . . . 2 . 2 . . 2 Power 1 | . . . . . . . . . . . . . . 1 . . . . . . . . . . . . . . . . . . . . Propulsion 4 | . . . 1 . . . 1 . . . . . . . . . . . . . . . . . . . . . . . 1 . . 1 Utility 13 | . . . 1 . . . 1 2 . . . . . 1 . . . . 2 . . . . 2 . . . . 2 . 1 . . 1 Weapon . | . . . . . . . . . . . . . . . . . . . . . . . . . . . . . . . . . . . Parts Attached 650 | . 16 5 27 . 1 . 21 50 8 5 5 40 . 18 12 7 9 23 35 11 13 4 13 22 18 17 7 11 47 60 64 38 18 25 Power 55 | . 2 . 1 . . . 2 5 . . 1 5 . . . 2 . 3 1 1 . . . 4 1 2 . . 3 7 6 4 2 3 Engine 14 | . 2 . 1 . . . 1 4 . . 1 4 . . . . . . . 1 . . . . . . . . . . . . . . Core 11 | . . . . . . . 1 1 . . . . . . . . . 1 1 . . . . 2 1 2 . . . 1 . 1 . . Reactor 30 | . . . . . . . . . . . . 1 . . . 2 . 2 . . . . . 2 . . . . 3 6 6 3 2 3 Propulsion 81 | . 2 1 7 . 1 . 3 11 1 . . 6 . 1 4 2 . . 4 . . . . 2 1 1 . . 6 5 8 8 3 4 Treads 44 | . 2 1 4 . 1 . 2 4 . . . 1 . . . 1 . . 1 . . . . 2 1 1 . . 6 2 4 4 3 4 Leg 21 | . . . . . . . . 4 . . . 4 . . 4 1 . . . . . . . . . . . . . . 4 4 . . Wheel 16 | . . . 3 . . . 1 3 1 . . 1 . 1 . . . . 3 . . . . . . . . . . 3 . . . . Hover . | . . . . . . . . . . . . . . . . . . . . . . . . . . . . . . . . . . . Flight . | . . . . . . . . . . . . . . . . . . . . . . . . . . . . . . . . . . . Utility 326 | . 4 1 5 . . . 6 15 4 1 2 17 . 17 7 3 6 15 22 9 9 2 7 11 7 6 2 2 28 33 39 20 10 16 Device 219 | . 2 . 2 . . . 2 7 3 . 2 9 . 12 5 . 5 11 17 5 5 1 5 11 2 3 1 1 19 23 26 19 10 11 Storage 13 | . 1 . 1 . . . . 1 . . . 2 . . . . . . 1 . . 1 . . 3 . . . 1 1 . . . 1 Processor 14 | . . . . . . . 1 . 1 . . . . 1 . . . . 1 . . . . . . . . . 3 3 4 . . . Hackware 6 | . . . . . . . 2 2 . . . . . . . . . 1 . . . . . . . . . . . . 1 . . . Protection 74 | . 1 1 2 . . . 1 5 . 1 . 6 . 4 2 3 1 3 3 4 4 . 2 . 2 3 1 1 5 6 8 1 . 4 Artifact . | . . . . . . . . . . . . . . . . . . . . . . . . . . . . . . . . . . . Weapon 188 | . 8 3 14 . . . 10 19 3 4 2 12 . . 1 . 3 5 8 1 4 2 6 5 9 8 5 9 10 15 11 6 3 2 Energy Gun 39 | . 3 1 6 . . . 4 . . . . 1 . . 1 . . 1 4 1 . . 2 1 1 2 . 3 . 5 . . 2 1 Energy Cannon 84 | . . . . . . . 2 12 2 2 2 7 . . . . . 1 2 . 3 2 2 3 5 3 4 3 10 2 10 5 1 1 Ballistic Gun 20 | . 2 1 5 . . . 2 . . . . . . . . . 3 3 . . . . . . . . . . . 4 . . . . Ballistic Cannon 1 | . . . . . . . . . . . . . . . . . . . 1 . . . . . . . . . . . . . . . Launcher 34 | . 3 1 3 . . . 1 3 1 1 . 4 . . . . . . 1 . 1 . 2 1 3 3 1 3 . 1 1 . . . Special Weapon . | . . . . . . . . . . . . . . . . . . . . . . . . . . . . . . . . . . . Impact Weapon 9 | . . . . . . . 1 4 . 1 . . . . . . . . . . . . . . . . . . . 2 . 1 . . Slashing Weapon 1 | . . . . . . . . . . . . . . . . . . . . . . . . . . . . . . 1 . . . . Piercing Weapon . | . . . . . . . . . . . . . . . . . . . . . . . . . . . . . . . . . . . Special Melee Weapon . | . . . . . . . . . . . . . . . . . . . . . . . . . . . . . . . . . . . Unidentified Prototypes 54 | . . . 3 . . . . 1 . . 1 9 . . . 2 1 1 1 . . 2 1 . . . . . . 15 6 8 . 3 Corrupted Parts 4 | . . . . . . . . . . . . . . . . 1 1 . . . . . . . . 2 . . . . . . . . System Corruption 25 | . . . . . . . . . . . . . . . . 9 2 . . . . . . . . 14 . . . . . . . . Parts Lost 127 | . . 4 7 . . . 6 4 . . . 2 . . 3 . . 4 6 2 2 . 3 . 1 7 . 2 25 13 26 2 3 5 Power 23 | . . . 1 . . . 1 1 . . . . . . . . . 1 2 . 1 . 1 . . 2 . 1 3 4 4 . . 1 Propulsion 22 | . . 2 3 . . . 3 1 . . . 1 . . . . . . 1 . . . . . . 1 . . 3 3 4 . . . Utility 66 | . . 1 1 . . . 2 2 . . . . . . 3 . . 2 3 2 1 . 2 . 1 4 . 1 13 6 14 2 2 4 Weapon 16 | . . 1 2 . . . . . . . . 1 . . . . . 1 . . . . . . . . . . 6 . 4 . 1 . Highest Loss Streak 8 | . . 2 3 . . . 2 1 . . . 1 . . 2 . . 2 4 2 1 . 2 . 1 4 . 1 6 4 8 1 2 2 To Critical Strikes 1 | . . . . . . . . . . . . . . . . . . . . . . . . . . . . . . 1 . . . . Average Slot Usage (%) 79 | . 97 90 81 88 88 88 78 82 76 76 73 72 76 76 82 89 85 85 76 73 78 64 72 78 83 82 81 77 78 84 81 83 66 69 Engine 3 | . 14 14 10 11 11 11 6 5 7 7 6 6 7 . . . . . . 3 4 . . . . . . . . . . . . . Core 2 | . . . . . . . 2 1 . . . . . . . . . . 4 5 5 5 2 5 6 9 10 8 2 . . 2 . . Reactor 2 | . . . . . . . . . . . . . . 6 6 11 13 11 2 . . . . 1 3 . . . 3 8 7 4 4 4 Treads 7 | . 28 19 21 11 11 11 14 5 . . . . . . . 1 6 6 3 5 5 5 5 4 4 7 10 10 11 3 11 7 10 12 Leg 3 | . . . . . . . . 8 . . . 8 15 13 20 22 13 13 . . . . . . . . . . . . 1 7 . . Wheel 5 | . . . 5 22 22 22 10 7 15 15 15 9 7 6 1 . . . 6 5 5 5 5 5 5 2 . . . 7 . . . . Device 16 | . 7 4 5 11 11 11 8 10 15 15 15 10 15 16 13 11 6 9 21 22 18 14 18 31 28 20 20 14 21 21 22 21 16 17 Storage 9 | . 14 14 11 11 11 11 9 7 7 7 7 8 15 13 13 13 13 13 11 11 11 13 8 5 8 10 10 10 9 13 8 7 4 4 Processor 6 | . . . . . . . 3 . 6 7 7 3 . 3 6 6 6 6 5 5 5 5 5 5 5 5 5 5 11 13 14 17 17 16 Protection 6 | . 5 9 5 . . . . 5 7 7 7 8 . 3 6 7 11 6 4 5 9 11 11 6 8 14 15 21 9 3 4 2 4 7 Energy Gun 2 | . 15 13 12 . . . 11 . . . . 1 . . . 6 . . 4 5 1 . 2 4 3 2 2 1 . 4 . . 2 4 Energy Cannon 6 | . . . . . . . 1 13 14 14 12 10 15 13 12 6 6 5 2 . 6 . 8 5 5 7 4 4 7 . 6 6 5 4 Ballistic Gun 2 | . 8 13 7 22 22 22 2 . . . . . . . . . 4 6 2 . . . . . . . . . . 1 . . . . Naked Turns . | . . . . . . . . . . . . . . . . . . . . . . . . . . . . . . . . . . . Heaviest Build 249 | 12 34 33 157 154 154 154 163 176 170 172 172 187 183 227 226 216 215 212 198 186 191 185 185 196 205 211 232 232 229 216 239 249 249 237 Greatest Support 240 | 20 40 40 60 20 20 20 40 112 56 56 56 99 60 60 100 100 60 60 80 28 70 28 28 28 75 145 145 145 150 150 195 165 195 240 Greatest Overweight (x) 15 | . . 1 15 7 7 7 15 10 3 3 3 6 3 3 7 3 3 3 7 6 6 6 6 6 7 7 1 1 1 4 4 3 1 . Average Overweight (x) 3 | . . . 3 7 7 7 7 2 3 2 2 3 3 3 2 2 3 2 5 6 5 5 6 6 6 4 1 1 1 3 1 1 1 . Largest Inventory Capacity 30 | . 15 15 30 30 30 30 30 30 30 30 30 30 30 30 30 30 30 30 30 30 30 30 30 30 30 30 30 30 30 30 30 30 30 30 Average Capacity 28 | . 14 15 27 30 30 30 30 30 30 30 30 29 30 30 30 30 30 30 30 30 30 30 30 30 30 30 30 30 30 29 30 30 30 26 Most Carried 30 | . 15 15 30 30 30 30 30 30 30 30 30 30 30 30 30 30 30 30 30 30 30 30 30 29 30 29 30 30 30 30 30 30 30 30 Average Carried 27 | . 12 13 22 30 29 30 29 29 27 29 29 25 29 29 29 29 29 28 26 29 28 29 29 27 28 27 29 29 24 24 28 25 29 24 Final Capacity 30 | 8 15 15 30 30 30 30 30 30 30 30 30 30 30 30 30 30 30 30 30 30 30 30 30 30 30 30 30 30 30 30 30 30 30 20 Final Carried 30 | 6 15 14 30 30 30 30 30 30 30 30 30 29 30 30 30 30 30 28 30 29 29 29 28 28 29 25 30 24 21 30 23 30 30 20 Class Distribution -------------------- 74% | Hauler-Mutant 9% | Hauler-Skirmisher 6% | Mutant 3% | Hauler-Golem 3% | Scavenger-Mutant Dominant Class ---------------- Mutant | -10/Materials Mutant | -10/Mines Hauler-Mutant | -9/Materials Hauler-Mutant | -9/Mines Hauler-Mutant | -9/Exiles Hauler-Mutant | -8/Mines Hauler-Mutant | -8/Materials Hauler-Mutant | -7/Factory Hauler-Mutant | -7/Lower Caves Hauler-Mutant | -7/Lower Caves Hauler-Mutant | -7/Zion Hauler-Mutant | -7/Deep Caves Hauler-Golem | -6/Proximity Caves Hauler-Mutant | -6/Factory Hauler-Mutant | -6/Extension Hauler-Mutant | -6/Cetus Hauler-Mutant | -6/Archives Hauler-Mutant | -6/Hub_04(d) Hauler-Mutant | -5/Factory Hauler-Mutant | -5/Upper Caves Hauler-Mutant | -5/Upper Caves Hauler-Mutant | -5/Zhirov Hauler-Mutant | -4/Proximity Caves Hauler-Skirmisher | -4/Factory Hauler-Mutant | -4/Upper Caves Hauler-Mutant | -4/Upper Caves Hauler-Mutant | -4/Warlord Hauler-Mutant | -3/Proximity Caves Hauler-Skirmisher | -3/Research Hauler-Mutant | -3/Quarantine Hauler-Mutant | -2/Research Hauler-Mutant | -2/Testing Hauler-Skirmisher | -2/Section 7 Hauler-Skirmisher | -1/Access Resources | -11 -10 -10 -9 -9 -9 -8 -8 -7 -7 -7 -7 -7 -6 -6 -6 -6 -6 -6 -5 -5 -5 -5 -4 -4 -4 -4 -4 -3 -3 -3 -2 -2 -2 -1 ----------- Run | Jun Mat Min Mat Min Exi Min Mat Fac Low Low Zio Dee Pro Fac Ext Cet Arc Hub Fac Upp Upp Zhi Pro Fac Upp Upp War Pro Res Qua Res Tes Sec Acc Matter Collected 11147 | 200 295 190 516 81 10 126 180 630 161 128 . 646 28 20 262 131 132 497 337 345 271 . 325 407 660 753 462 47 842 493 966 484 282 240 Remotely 852 | . . . . . . . . . . . . . . . . . . . . . . . . . . . 452 . . . 400 . . . Salvage Created 28630 | . 744 344 1018 141 10 165 818 1916 94 25 . 694 . 208 510 272 533 1044 475 627 749 . 349 380 231 895 1425 1563 2330 1698 3561 1654 2413 1744 Parts 1186 | . 53 25 71 8 . 12 51 85 4 5 . 17 . 8 18 11 27 53 21 27 36 . 10 18 7 29 29 24 96 76 116 56 126 67 Haulers Intercepted 9 | . 2 . 4 . . . . 1 . . . . . . 1 . . . . . . . . . . . . . 1 . . . . . Recyclers Shooed 7 | . . 1 1 . . . 1 . . . . . . . . . . . . . . . . . . . . . 2 1 . . . 1 Parts Field Recycled . | . . . . . . . . . . . . . . . . . . . . . . . . . . . . . . . . . . . Retrieved Matter . | . . . . . . . . . . . . . . . . . . . . . . . . . . . . . . . . . . . Parts Self-Destructed 111 | . . . . . . . . . 2 6 . . . . . . . . . 26 33 . 8 . 6 12 . 18 . . . . . . Prevented 14 | . . . . . . . . . 2 . . . . . . . . . . . . . . . . 12 . . . . . . . . Kills | -11 -10 -10 -9 -9 -9 -8 -8 -7 -7 -7 -7 -7 -6 -6 -6 -6 -6 -6 -5 -5 -5 -5 -4 -4 -4 -4 -4 -3 -3 -3 -2 -2 -2 -1 ------- Run | Jun Mat Min Mat Min Exi Min Mat Fac Low Low Zio Dee Pro Fac Ext Cet Arc Hub Fac Upp Upp Zhi Pro Fac Upp Upp War Pro Res Qua Res Tes Sec Acc Combat Hostiles Destroyed 482 | . 18 9 25 . . 5 17 38 3 3 . 11 . 5 7 5 4 12 9 13 18 . 8 6 13 17 30 31 29 21 53 15 30 27 Melee 1 | . . . . . . . . . . . . . . . . . . . . . . . . . . . 1 . . . . . . . Guns 116 | . 7 6 17 . . 5 11 . . . . . . . . 2 . 6 4 13 11 . . 2 2 . . 1 . 13 . . 8 8 Cannons 166 | . . . . . . . . 26 1 . . 2 . 5 7 3 4 6 2 . 3 . 2 2 1 5 1 . 19 . 29 13 19 16 AOE 120 | . 11 3 8 . . . 6 9 2 3 . 7 . . . . . . 2 . 4 . 4 . 10 9 15 14 2 . 10 . . 1 Classes Destroyed 31 | . 8 1 3 . . . 1 1 . . . 3 . . . . . 1 . . . . 1 . . . 5 . 1 1 1 2 1 1 Worker 18 | . 3 . 2 2 . 1 1 1 . . . . . . . . . 4 . . . . . 1 . . . . 1 . . . 1 1 Builder 15 | . 3 . 2 . . 1 1 2 . . . . . . . . . 1 . . . . . . . . . . 2 . . . 2 1 Tunneler 7 | . . 3 1 1 . . . . . . . . . . . . . 1 . . . . . 1 . . . . . . . . . . Hauler 9 | . 2 . 4 . . . . 1 . . . . . . 1 . . . . . . . . . . . . . 1 . . . . . Recycler 14 | . 1 1 . 1 . 1 2 4 . . . . . . . . . 1 . . . . . . . . . . 1 1 1 . . . Mechanic 3 | . 1 . . . . . 1 . . . . . . . . . . . . . . . . . . 1 . . . . . . . . Operator 8 | . . . 1 . . . . . . . . . . . . . 6 . . . . . . . . . . . . . . . 1 . Drone 2 | . . . . . . . . . . . . . . . . . . . . . . . 2 . . . . . . . . . . . Watcher 22 | . 2 . 3 . . . 2 2 . . . . . . 2 . . 1 2 . . . . 1 . . . . 2 2 . 1 1 1 Swarmer 117 | . 6 3 7 . . 5 7 7 . 3 . . . 3 2 5 . . 2 5 10 . . . 9 5 5 16 . . 10 . . 7 Saboteur 2 | . . . . . . . . . . . . . . . . . . . . . . . . . . . 1 1 . . . . . . Grunt 141 | . 12 6 13 . . . 5 23 3 . . . . . 2 . . 3 . 4 5 . 3 . 2 4 11 8 4 6 9 4 9 5 Brawler 15 | . . . . . . . 1 1 . . . . . . . . . . . . . . 1 . . 5 3 2 . 1 . 1 . . Duelist 8 | . . . 1 . . . . 1 . . . . . . . . . . . . . . . . 1 1 2 2 . . . . . . Protector 4 | . . . . . . . . . . . . . . . . . . . . . . . . . . . 4 . . . . . . . Researcher 3 | . . . . . . . . . . . . . . . . . . . . . . . . . . . . . . . . 2 1 . Sentry 42 | . . . 4 . . . 4 3 . . . . . 2 3 . 4 4 2 1 1 . . 2 1 2 . 2 3 . . . 2 2 Demolisher 6 | . . . . . . . . . . . . . . . . . . . . . . . . . . . 1 . . . 5 . . . Specialist 5 | . . . . . . . . . . . . . . . . . . . . . . . . . . . 1 . 4 . . . . . Hunter 42 | . . . . . . . . . . . . . . . . . . 3 2 1 2 . 2 . . . 1 . 6 2 6 3 8 6 Programmer 52 | . . . . . . . . 3 . . . . . . . . . 2 3 2 . . . 4 . . . . 11 11 1 6 8 1 Heavy 1 | . . . . . . . . . . . . . . . . . . . . . . . . . . . . . . . . . 1 . Q-Series 2 | . . . . . . . . . . . . . . . . . . . . . . . . . . . . . . . . . . 2 Behemoth 1 | . . . . . . . . . . . . . . . . . . . . . . . . . . . . . 1 . . . . . Tracker 2 | . . . . . . . . . . . . . . . . . . . . . . . . . . . . . . . . . . 2 Combat Programmer 2 | . . . . . . . . . . . . . . . . . . . . . . . . . . . . . . . . . . 2 Striker 13 | . . . . . . . . . . . . . . . . . . . . . . . . . . . . . . . 13 . . . Executioner 10 | . . . . . . . . . . . . . . . . . . . . . . . . . . . 1 . . . 9 . . . Alpha 7 3 | . . . . . . . . . . . . . . . . . . . . . . . . . . . . . . 1 . . 2 . Fortress 1 | . . . . . . . . . . . . . . . . . . . . . . . . . . . . . . . . 1 . . Z-Light 6 | . . . . . . . . . . . . 6 . . . . . . . . . . . . . . . . . . . . . . Decomposer 4 | . . . . . . . . . . . . . . . . . . . . . 4 . . . . . . . . . . . . . Assembled 3 | . . . . . . . . . . . . 3 . . . . . . . . . . . . . . . . . . . . . . Golem 2 | . . . . . . . . . . . . 2 . . . . . . . . . . . . . . . . . . . . . . Butcher 1 | . . . . . . . . . . . . . . . . 1 . . . . . . . . . . . . . . . . . . Best Kill Streak 12 | . 5 4 12 2 . 3 6 9 3 3 . 3 . 3 2 5 4 5 3 4 5 . 4 4 4 7 11 8 6 7 11 3 8 7 Combat Bots Only 11 | . 3 3 10 . . 2 6 7 3 3 . 3 . 3 2 5 4 2 3 4 5 . 4 2 4 7 11 8 6 7 11 3 6 7 Max Kills in Single Turn 5 | . 3 2 3 1 . 1 3 3 1 2 . 2 . 1 1 2 1 5 2 1 2 . 2 2 3 3 4 4 3 3 2 1 2 2 Gunslinging 1 | . . . 1 . . . 1 . . . . . . . . . . . . . . . . . . . . . . . . . . . Exploded 4 | . 2 1 3 . . . 3 3 1 2 . 2 . . . . . . 2 . 2 . 2 . 3 3 4 4 1 . 2 . . 1 Melee 1 | . . . . . . . . . . . . . . . . . . . . . . . . . . . 1 . . . . . . . Uniques/NPCs Destroyed 2 | . . . . . . . . . . . . 1 . . . 1 . . . . . . . . . . . . . . . . . . Z-Imprinter (-7/Deep Caves) A7 (-6/Cetus) Combat | -11 -10 -10 -9 -9 -9 -8 -8 -7 -7 -7 -7 -7 -6 -6 -6 -6 -6 -6 -5 -5 -5 -5 -4 -4 -4 -4 -4 -3 -3 -3 -2 -2 -2 -1 -------- Run | Jun Mat Min Mat Min Exi Min Mat Fac Low Low Zio Dee Pro Fac Ext Cet Arc Hub Fac Upp Upp Zhi Pro Fac Upp Upp War Pro Res Qua Res Tes Sec Acc Damage Taken 50155 | . 398 466 1284 . . 156 597 2190 193 61 . 1288 . 335 490 216 133 2179 1368 604 675 . 1070 507 274 1337 256 840 6574 3013 10748 1560 4846 6497 Core 4263 | . 37 88 249 . . 17 96 411 38 10 . 239 . 64 62 13 . 186 81 41 68 . 45 79 28 135 33 23 437 467 786 137 236 157 Absorbed by Shields 3231 | . 73 82 . . . . . 133 . . . 108 . 18 202 79 49 220 89 192 274 . 168 86 76 . . . . 330 708 165 179 . Reduced by Siege Mode 2788 | . . . . . . . . . . . . . . . . . . 34 41 . 2 . 47 . . 29 . . 757 20 973 31 298 556 Redirected to Shielding 163 | . 25 . . . . . . . . . . . . . . 7 20 55 . . . . . . . . 13 9 34 . . . . . Regen/Repaired (Parts) 6055 | . . . . . . . . . . . . . . . . . . . 655 . . . . . . . 282 . . 860 . 82 1731 2445 Core Remaining (%) 51 | 100 . 50 . . . 33 82 . . . . . . . . . . 61 . . . . 69 . . . . 74 . 30 . . 20 . Volleys Fired 1441 | . 58 30 88 6 3 18 43 103 11 3 1 47 10 13 26 15 37 63 52 . 21 . 47 31 25 36 42 31 104 81 137 33 103 123 Largest 2 | . 2 2 2 2 2 2 2 2 2 1 1 2 2 2 2 2 2 2 2 . 2 . 2 2 2 2 2 2 2 2 2 2 2 2 Hottest 250 | . 90 60 122 46 46 46 122 160 160 36 80 160 50 50 50 85 85 150 190 . 180 . 190 190 190 165 250 250 250 250 250 250 240 193 Shots Fired 2543 | . 97 57 161 12 6 36 84 195 17 3 1 65 20 20 49 19 69 124 79 56 83 . 69 48 29 57 45 33 157 135 254 60 196 207 Gun 1040 | . 84 54 148 12 6 36 82 . . . . 9 . . . 12 38 68 47 56 52 . 6 17 5 10 . 2 . 117 3 . 80 96 Cannon 1364 | . . . . . . . . 185 12 . 1 38 20 20 49 7 31 56 30 . 25 . 57 30 14 37 23 22 157 18 245 60 116 111 Launcher 139 | . 13 3 13 . . . 2 10 5 3 . 18 . . . . . . 2 . 6 . 6 1 10 10 22 9 . . 6 . . . Special . | . . . . . . . . . . . . . . . . . . . . . . . . . . . . . . . . . . . Kinetic 298 | . 21 27 65 12 6 36 . . . . . . . . . . 22 60 25 . . . . . . . . . . 23 1 . . . Thermal 1981 | . 63 27 83 . . . 82 185 12 . 1 22 20 20 49 7 31 56 52 56 77 . 63 47 19 17 23 24 136 99 247 60 196 207 Explosive 139 | . 13 3 13 . . . 2 10 5 3 . 18 . . . . . . 2 . 6 . 6 1 10 10 22 9 . . 6 . . . Electromagnetic 125 | . . . . . . . . . . . . 25 . . . 12 16 8 . . . . . . . 30 . . 21 13 . . . . Robot Hit Streak 40 | . 6 9 18 16 2 5 13 9 8 . . 9 . 7 10 5 15 24 28 29 25 . 10 20 20 13 9 12 26 15 40 18 26 35 Robot Miss Streak 14 | . 4 2 2 1 2 5 2 7 2 . . 2 . 1 2 2 3 4 2 4 3 . 14 5 2 4 5 7 4 3 3 2 3 4 Penetration Max 1 | . . . . . . . . . . . . . . . . . . 1 . . . . . . . . . . . . 1 . . . Secondary Targets 14 | . 2 1 4 . . 2 3 . . . . . . . . . . . . . . . . . . . . . . 2 . . . . Max Gunslinging Chain 1 | . 1 1 1 . . 1 1 . . . . . . . . . . . . . . . . . . . . . . 1 . . . . Autonomous 109 | . . . . . . . . . . . . . . . . . . . . 56 53 . . . . . . . . . . . . . Shots Hit Robots 1673 | . 56 37 111 8 3 17 57 110 10 . . 28 . 14 34 11 46 76 43 47 54 . 19 28 16 39 16 20 130 92 204 41 146 160 Core Hits 1084 | . 44 22 59 4 1 8 35 73 9 5 . 22 . 5 14 8 18 30 22 19 29 . 16 19 25 34 110 64 62 55 98 26 74 74 Critical Kills 28 | . . . . . . . . 1 . . . . . . . . 1 3 1 . . . 2 2 . . . . 4 . 9 1 2 2 Critical Parts Destroyed 10 | . . . 1 . . . . . . . . . . . . . . 7 2 . . . . . . . . . . . . . . . Critical Strikes 54 | . 3 . 8 . . . 1 1 . . . . . . . . 1 12 3 . . . 2 2 . 1 . . 6 . 9 1 2 2 Burn 12 | . 3 . 7 . . . 1 . . . . . . . . . . . . . . . . . . 1 . . . . . . . . Meltdown 23 | . . . . . . . . 1 . . . . . . . . . . 1 . . . 2 2 . . . . 4 . 8 1 2 2 Destroy 16 | . . . 1 . . . . . . . . . . . . . 1 11 2 . . . . . . . . . . . 1 . . . Corrupt 3 | . . . . . . . . . . . . . . . . . . 1 . . . . . . . . . . 2 . . . . . Melee Attacks 20 | . . . . . . . 2 11 . 1 . . . . . . . . . . . . . . . . . . . 5 . 1 . . Kinetic 3 | . . . . . . . . . . . . . . . . . . . . . . . . . . . . . . 2 . 1 . . Impact 14 | . . . . . . . 2 11 . 1 . . . . . . . . . . . . . . . . . . . . . . . . Slashing 3 | . . . . . . . . . . . . . . . . . . . . . . . . . . . . . . 3 . . . . Piercing . | . . . . . . . . . . . . . . . . . . . . . . . . . . . . . . . . . . . Sneak Attacks . | . . . . . . . . . . . . . . . . . . . . . . . . . . . . . . . . . . . Combat Hostiles . | . . . . . . . . . . . . . . . . . . . . . . . . . . . . . . . . . . . Follow-up Attacks . | . . . . . . . . . . . . . . . . . . . . . . . . . . . . . . . . . . . Damage Inflicted 74328 | . 1611 673 2523 152 46 251 1440 4282 556 292 . 1733 . 705 1792 451 1543 2668 1634 1566 2144 . 1216 1038 1524 2611 4730 2802 5918 3688 11280 1915 5755 5789 Guns 18788 | . 611 440 1599 152 46 251 1120 . . . . 58 . . . 196 556 1033 1160 1566 1285 . 166 515 155 166 . 13 . 2381 99 . 2560 2660 Cannons 34483 | . . . . . . . . 2962 252 . . 530 . 705 1747 255 957 1185 345 . 348 . 438 456 210 797 365 397 5304 544 8847 1863 3119 2857 Explosions 20668 | . 1000 198 900 . . . 320 1320 304 292 . 1145 . . . . 30 450 129 . 497 . 612 67 1159 1648 4365 2392 601 733 2304 52 . 150 Melee 30 | . . . . . . . . . . . . . . . . . . . . . . . . . . . . . . 30 . . . . Ramming 359 | . . 35 24 . . . . . . . . . . . 45 . . . . . 14 . . . . . . . 13 . 30 . 76 122 Kinetic 3592 | . 147 248 584 152 46 251 . . . . . . . . . . 271 913 377 . . . . . . . . . . 546 57 . . . Thermal 52491 | . 464 192 1015 . . . 1120 3024 252 . . 264 . 705 1747 255 957 1185 1128 1566 1633 . 604 971 365 331 1607 2108 5295 2818 9704 1915 5679 5587 Explosive 14752 | . 1000 198 900 . . . 320 1258 304 292 . 1062 . . . . . . 129 . 497 . 612 67 1159 1648 3123 694 . . 1489 . . . Electromagnetic 3134 | . . . . . . . . . . . . 407 . . . 196 315 570 . . . . . . . 632 . . 610 324 . . . 80 Impact . | . . . . . . . . . . . . . . . . . . . . . . . . . . . . . . . . . . . Slashing . | . . . . . . . . . . . . . . . . . . . . . . . . . . . . . . . . . . . Piercing . | . . . . . . . . . . . . . . . . . . . . . . . . . . . . . . . . . . . Highest Corruption 27 | . . . . . . . . 1 1 1 1 . . . 1 10 10 1 5 4 4 4 4 4 4 20 20 . 7 27 3 4 13 8 Average Corruption 4 | . . . . . . . . 1 1 1 1 . . . 1 8 6 1 1 2 4 4 4 3 4 10 20 . 3 17 2 3 5 5 Corruption Purged 27 | . . . . . . . . . . . . . . . . . 12 . 5 . . . . . . . . . . 10 . . . . Corruption Blocked 5 | . . . . . . . . . . . . . . . . . . . . . . . . . . . . . . . 5 . . . Effects 508 | . . . . . . . . 1 10 12 . . . . 3 13 13 4 11 16 34 7 25 3 31 69 5 . 20 89 54 27 46 15 Message Errors 116 | . . . . . . . . . 1 3 . . . . . 3 1 . 2 2 13 2 7 1 5 15 2 . 4 23 15 8 6 3 Matter Fused 124 | . . . . . . . . . 4 3 . . . . 1 6 5 1 3 6 6 4 6 . 11 17 1 . 4 16 11 4 14 1 Heat Flow Errors 57 | . . . . . . . . . . 3 . . . . 1 2 1 . 3 5 5 . 1 . 3 7 . . 1 14 4 3 4 . Energy Discharges 59 | . . . . . . . . . 2 1 . . . . . . . 1 1 2 3 1 3 1 2 13 1 . 1 7 10 4 3 3 Parts Rejected 7 | . . . . . . . . . . . . . . . . . . 1 . . . . . 1 . . . . . . 1 1 2 1 Parts Fused 7 | . . . . . . . . . . . . . . . . . . . . . . . . . 1 . 1 . 1 2 1 . 1 . Data Loss (minor) 57 | . . . . . . . . 1 2 1 . . . . 1 1 1 1 . . 4 . 4 . 6 8 . . 2 7 6 2 6 4 Data Loss (major) 27 | . . . . . . . . . 1 . . . . . . 1 1 . 1 1 2 . 1 . 2 6 . . 2 3 1 3 1 1 Misfires 21 | . . . . . . . . . . . . . . . . . 3 . 1 . 1 . 2 . . 1 . . 2 4 2 1 4 . Alerts 13 | . . . . . . . . . . 1 . . . . . . . . . . . . 1 . . 2 . . 2 3 2 . 2 . Misdirections 1 | . . . . . . . . . . . . . . . . . . . . . . . . . . . . . . 1 . . . . Weapon Failures 19 | . . . . . . . . . . . . . . . . . 1 . . . . . . . 1 . . . 1 9 1 1 3 2 Overload Shots 6 | . . . . . . . . . . . . . . . . . . . . . . . . . . . . . . 6 . . . . Effects 2 | . . . . . . . . . . . . . . . . . . . . . . . . . . . . . . 2 . . . . Energy Bleed 1 | . . . . . . . . . . . . . . . . . . . . . . . . . . . . . . 1 . . . . Heat Surge 1 | . . . . . . . . . . . . . . . . . . . . . . . . . . . . . . 1 . . . . Overflow Damage 1702 | . 22 . 33 . . . 2 24 23 43 . 121 . 10 84 39 167 69 . . 115 . 1 29 59 57 7 43 224 77 219 84 34 116 Projectiles 1050 | . . . . . . . . 23 23 . . 22 . 10 75 39 167 12 . . 47 . . 29 26 . . . 178 77 175 84 5 58 Explosions 574 | . 22 . 33 . . . 2 1 . 43 . 99 . . . . . 57 . . 56 . 1 . 33 57 7 43 46 . 44 . . 30 Melee 78 | . . . . . . . . . . . . . . . 9 . . . . . 12 . . . . . . . . . . . 29 28 Knockbacks 3 | . . . 1 . . . . . . . . . . . . . . . . . . . . . . . . . . . . . 1 1 Impact 3 | . . . 1 . . . . . . . . . . . . . . . . . . . . . . . . . . . . . 1 1 Kinetic . | . . . . . . . . . . . . . . . . . . . . . . . . . . . . . . . . . . . Secondary . | . . . . . . . . . . . . . . . . . . . . . . . . . . . . . . . . . . . Self-Inflicted Damage 1089 | . 50 15 . . . . 15 162 32 . . 21 . . . . . 186 . . . . . . 32 37 . 119 46 194 170 10 . . Shots 47 | . 2 1 . . . . 1 3 1 . . 1 . . . . . 2 . . . . . . 2 1 . 6 2 11 13 1 . . Rammed 17 | . . 7 3 . . . . . . . . . . . . . . . . . . . . . . . . . 1 . . . 3 3 Targets Rammed 25 | . . 9 3 . . . . . . . . . . . 2 . . . . . 1 . . . . . . . 1 . 3 . 3 3 Kicked 5 | . . . . . . . . . . . . . . . 2 . . . . . . . . . . . . . . . 3 . . . Crushed 3 | . . 2 . . . . . . . . . . . . . . . . . . 1 . . . . . . . . . . . . . Highest Temperature 444 | . 252 208 250 . . . 183 435 45 249 . 66 . 7 187 272 327 340 333 192 247 . 295 444 249 437 276 200 330 339 403 193 130 16 Average Temperature 97 | . 67 99 61 . . . 32 67 20 100 . 20 . 7 95 86 137 114 140 84 61 . 75 123 86 118 89 130 142 96 122 79 52 8 Received Heat Transfer 5336 | . 207 255 507 . . . 207 768 45 6 . 204 . 44 95 12 6 360 51 78 76 . 147 22 34 231 36 69 699 127 324 213 315 198 Effects 32 | . 2 . 2 . . . . 1 . . . . . . . . . 5 2 . . . 1 2 . 1 1 1 2 1 11 . . . Shutdowns 7 | . . . . . . . . 1 . . . . . . . . . 2 . . . . . 2 . 1 . . . . 1 . . . Energy Bleed 11 | . . . 2 . . . . . . . . . . . . . . . . . . . 1 . . . 1 1 2 1 3 . . . Interference 12 | . 2 . . . . . . . . . . . . . . . . 3 2 . . . . . . . . . . . 5 . . . Matter Decay 1 | . . . . . . . . . . . . . . . . . . . . . . . . . . . . . . . 1 . . . Damage (minor) 1 | . . . . . . . . . . . . . . . . . . . . . . . . . . . . . . . 1 . . . Siege Activations 78 | . . . . . . . . . . . . . . . . . 2 4 3 1 1 . 2 1 . 2 . . 16 2 16 4 12 12 Total Turns 1404 | . . . . . . . . . . . . . . . . . 10 57 45 4 8 . 31 11 . 24 . . 248 9 380 39 255 283 Longest Duration 113 | . . . . . . . . . . . . . . . . . 5 16 24 4 8 . 28 11 . 22 . . 43 6 113 26 67 79 Robots Corrupted 6 | . . . . . . . . . . . . 2 . . . . . . . . . . . . . 2 . . 2 . . . . . Combat Hostiles 6 | . . . . . . . . . . . . 2 . . . . . . . . . . . . . 2 . . 2 . . . . . Parts Fried 15 | . . . . . . . . . . . . . . . . . 3 1 . . . . . . . 1 . . 7 3 . . . . Impact Corruptions 5 | . . . . . . . . . . . . . . . 1 . . . . . 2 . . . . . . . . . . . 1 1 Robots Melted 73 | . . . 1 . . . . 3 . . . . . . . . . . 1 . . . 2 2 . 1 13 16 7 7 14 1 3 2 Combat Hostiles 69 | . . . . . . . . 3 . . . . . . . . . . 1 . . . 2 2 . 1 13 14 6 7 14 1 3 2 Parts Melted 309 | . 1 . 7 . . . 4 17 . . . . . . 2 . . 2 9 6 5 . 5 6 . 4 40 55 33 25 50 16 13 9 Heat Transferred 84351 | . 1390 450 2815 . . . 2146 5850 450 . . 362 . 350 887 125 550 1518 1520 1665 2035 . 830 1231 472 592 8357 11354 7326 6762 12150 1960 5197 6007 Parts Sabotaged . | . . . . . . . . . . . . . . . . . . . . . . . . . . . . . . . . . . . Parts Stolen . | . . . . . . . . . . . . . . . . . . . . . . . . . . . . . . . . . . . Parts Stripped . | . . . . . . . . . . . . . . . . . . . . . . . . . . . . . . . . . . . Power Chain Reactions 5 | . . . . . . . . . . . . 1 . . . . 1 . . . . . . . . . . . 1 1 . . . 1 Missiles Intercepted 61 | . . . . . . . . . . . . . . . . . . . . . . . . . . . . . . . 10 . . 51 Alert | -11 -10 -10 -9 -9 -9 -8 -8 -7 -7 -7 -7 -7 -6 -6 -6 -6 -6 -6 -5 -5 -5 -5 -4 -4 -4 -4 -4 -3 -3 -3 -2 -2 -2 -1 ------- Run | Jun Mat Min Mat Min Exi Min Mat Fac Low Low Zio Dee Pro Fac Ext Cet Arc Hub Fac Upp Upp Zhi Pro Fac Upp Upp War Pro Res Qua Res Tes Sec Acc Peak Influence 1160 | . 520 305 361 132 . 86 218 722 . . . . . 348 467 648 379 893 594 . . . . 806 . . . . 417 574 1160 763 610 813 Initial 806 | . . 195 1 132 . . 1 8 . . . . . . 22 260 179 68 437 . . . . 806 . . . . 263 234 283 652 141 365 Average 258 | . 201 111 219 51 . 7 73 329 . . . . . 168 148 440 265 290 402 . . . . 626 . . . . 254 431 190 429 307 515 Maximum Alert Level 4 | . 2 1 1 . . . 1 3 . . . . . 1 2 2 1 3 2 . . . . 3 . . . . 2 2 4 3 2 3 Low Security (%) 43 | . 59 77 33 100 . 100 95 19 . . . . . 66 64 . 55 28 . . . . . . . . . . 34 . 67 6 19 . Level 1 34 | . 13 22 66 . . . 4 61 . . . . . 33 33 30 44 64 40 . . . . . . . . . 60 41 16 59 48 37 Level 2 17 | . 27 . . . . . . 16 . . . . . . 1 69 . 6 59 . . . . 57 . . . . 5 58 9 7 31 53 Level 3 3 | . . . . . . . . 3 . . . . . . . . . . . . . . . 42 . . . . . . 4 26 . 8 Level 4 . | . . . . . . . . . . . . . . . . . . . . . . . . . . . . . . . 2 . . . Level 5 . | . . . . . . . . . . . . . . . . . . . . . . . . . . . . . . . . . . . High Security . | . . . . . . . . . . . . . . . . . . . . . . . . . . . . . . . . . . . Max Security . | . . . . . . . . . . . . . . . . . . . . . . . . . . . . . . . . . . . Squads Dispatched 74 | . 4 . 4 . . . . 13 . . . . . 1 2 . . 5 6 . . . . 2 . 1 . 1 8 7 . 3 7 10 Investigation 11 | . 4 . 1 . . . . 2 . . . . . 1 . . . 1 1 . . . . . . . . . . 1 . . . . Extermination 26 | . . . . . . . . 3 . . . . . . . . . 2 2 . . . . 2 . . . . 4 5 . 3 3 2 Reinforcement 23 | . . . 3 . . . . 3 . . . . . . 2 . . 2 2 . . . . . . . . . 4 1 . . 3 3 Assault 6 | . . . . . . . . 2 . . . . . . . . . . . . . . . . . 1 . 1 . . . . 1 1 Garrison 5 | . . . . . . . . 3 . . . . . . . . . . 1 . . . . . . . . . . . . . . 1 Intercept 3 | . . . . . . . . . . . . . . . . . . . . . . . . . . . . . . . . . . 3 Searches Triggered 2 | . . . . . . . . . . . . . . . . . . . . . . . . 2 . . . . . . . . . . Construction Impeded 5 | . . . . . . . . . . . . . . . 1 . . 2 1 . . . . . . . . . . . . . . 1 Haulers Reinforced 1 | . . . . . . . . . . . . . . . . . . . . . . . . . . . . . . . . . . 1 Active Scanning Responses . | . . . . . . . . . . . . . . . . . . . . . . . . . . . . . . . . . . . Cargo Convoy Interrupts . | . . . . . . . . . . . . . . . . . . . . . . . . . . . . . . . . . . . Stealth | -11 -10 -10 -9 -9 -9 -8 -8 -7 -7 -7 -7 -7 -6 -6 -6 -6 -6 -6 -5 -5 -5 -5 -4 -4 -4 -4 -4 -3 -3 -3 -2 -2 -2 -1 --------- Run | Jun Mat Min Mat Min Exi Min Mat Fac Low Low Zio Dee Pro Fac Ext Cet Arc Hub Fac Upp Upp Zhi Pro Fac Upp Upp War Pro Res Qua Res Tes Sec Acc Distress Signals 35 | . 2 1 2 . . . 3 2 . . . . . . . 2 . 2 1 . . . . 1 . . . . 4 2 7 4 . 2 Communications Jammed . | . . . . . . . . . . . . . . . . . . . . . . . . . . . . . . . . . . . Distress Signals . | . . . . . . . . . . . . . . . . . . . . . . . . . . . . . . . . . . . Times Spotted 648 | . 27 9 35 . . 8 20 44 6 3 . 15 . 6 23 17 11 18 15 14 19 . 16 8 13 16 38 29 38 33 67 26 38 36 Peak Tracking Total 12 | . 3 3 6 . . 3 5 7 3 3 . 4 . 4 5 7 1 4 4 5 5 . 4 2 5 6 12 9 6 5 7 5 6 6 Tactical Retreats 33 | . . . 1 . . 1 1 2 3 . . 3 . 1 2 . . 1 1 1 2 . . 1 . . 4 2 2 . 3 . 2 . Traps | -11 -10 -10 -9 -9 -9 -8 -8 -7 -7 -7 -7 -7 -6 -6 -6 -6 -6 -6 -5 -5 -5 -5 -4 -4 -4 -4 -4 -3 -3 -3 -2 -2 -2 -1 ------- Run | Jun Mat Min Mat Min Exi Min Mat Fac Low Low Zio Dee Pro Fac Ext Cet Arc Hub Fac Upp Upp Zhi Pro Fac Upp Upp War Pro Res Qua Res Tes Sec Acc Traps Triggered 12 | . 2 . . . . . . . . . . . . . 6 . . 1 2 . . . . . . . . . . . . . 1 . Indirectly . | . . . . . . . . . . . . . . . . . . . . . . . . . . . . . . . . . . . Trap Hack Attempts . | . . . . . . . . . . . . . . . . . . . . . . . . . . . . . . . . . . . Triggered . | . . . . . . . . . . . . . . . . . . . . . . . . . . . . . . . . . . . Disarmed . | . . . . . . . . . . . . . . . . . . . . . . . . . . . . . . . . . . . Reprogrammed . | . . . . . . . . . . . . . . . . . . . . . . . . . . . . . . . . . . . Reused . | . . . . . . . . . . . . . . . . . . . . . . . . . . . . . . . . . . . Traps Extracted . | . . . . . . . . . . . . . . . . . . . . . . . . . . . . . . . . . . . Installed . | . . . . . . . . . . . . . . . . . . . . . . . . . . . . . . . . . . . Triggered 12 | . . . . . . . . . 1 . . . . . . . . . . . . . . . . . 11 . . . . . . . Machines | -11 -10 -10 -9 -9 -9 -8 -8 -7 -7 -7 -7 -7 -6 -6 -6 -6 -6 -6 -5 -5 -5 -5 -4 -4 -4 -4 -4 -3 -3 -3 -2 -2 -2 -1 ---------- Run | Jun Mat Min Mat Min Exi Min Mat Fac Low Low Zio Dee Pro Fac Ext Cet Arc Hub Fac Upp Upp Zhi Pro Fac Upp Upp War Pro Res Qua Res Tes Sec Acc Machines Disabled 82 | . 2 . 1 . . . 2 10 . . . 1 . . 5 3 3 24 . . . . . 3 2 1 . . . 6 4 6 8 1 Max in Single Turn 10 | . 1 . 1 . . . 1 3 . . . 1 . . 1 1 1 10 . . . . . 2 1 1 . . . 1 1 1 1 1 Garrison Access 6 | . . . . . . . . . . . . . . 1 . . . 1 1 . . . . . . . . . . 1 1 1 . . Network Hub 2 | . . . . . . . . . . . . . . . . . . 2 . . . . . . . . . . . . . . . . Machines Repaired . | . . . . . . . . . . . . . . . . . . . . . . . . . . . . . . . . . . . Machines Sabotaged . | . . . . . . . . . . . . . . . . . . . . . . . . . . . . . . . . . . . Overloaded Fab Kills . | . . . . . . . . . . . . . . . . . . . . . . . . . . . . . . . . . . . Hacking | -11 -10 -10 -9 -9 -9 -8 -8 -7 -7 -7 -7 -7 -6 -6 -6 -6 -6 -6 -5 -5 -5 -5 -4 -4 -4 -4 -4 -3 -3 -3 -2 -2 -2 -1 --------- Run | Jun Mat Min Mat Min Exi Min Mat Fac Low Low Zio Dee Pro Fac Ext Cet Arc Hub Fac Upp Upp Zhi Pro Fac Upp Upp War Pro Res Qua Res Tes Sec Acc Machines Accessed 46 | . 5 . 1 . 2 . 4 8 1 1 . . . 2 8 . . 1 2 . . 4 . . . . . . . 5 . 2 . . Terminals 24 | . 3 . . . . . 4 6 . . . . . . 8 . . . . . . . . . . . . . . 2 . 1 . . Fabricators 3 | . . . . . . . . 2 . . . . . 1 . . . . . . . . . . . . . . . . . . . . Repair Stations 2 | . . . . . . . . . . . . . . . . . . . 1 . . . . . . . . . . 1 . . . . Recycling Units 3 | . 2 . 1 . . . . . . . . . . . . . . . . . . . . . . . . . . . . . . . Scanalyzers 1 | . . . . . . . . . . . . . . . . . . . . . . . . . . . . . . 1 . . . . Garrison Access 5 | . . . . . . . . . . . . . . 1 . . . 1 1 . . . . . . . . . . 1 . 1 . . Total Hacks 110 | . 9 . 2 . 2 . 11 17 1 1 . . . 3 17 . . 3 9 . . 17 . . . . . . . 13 . 5 . . Successful 66 | . 5 . 1 . 2 . 7 7 1 1 . . . 1 6 . . 1 5 . . 17 . . . . . . . 10 . 2 . . Failed 43 | . 3 . 1 . . . 4 10 . . . . . 2 11 . . 2 4 . . . . . . . . . . 3 . 3 . . Catastrophic 6 | . . . . . . . . 5 . . . . . . 1 . . . . . . . . . . . . . . . . . . . Database Lockouts 1 | . 1 . . . . . . . . . . . . . . . . . . . . . . . . . . . . . . . . . Manual 49 | . 9 . 2 . 1 . 9 14 . . 4 . . 3 . . . 1 3 . . . . . . . . . . 3 . . . . Terminals 52 | . 7 . . . . . 11 12 . . . . . . 17 . . . . . . . . . . . . . . 2 . 3 . . Fabricators 7 | . . . . . . . . 5 . . . . . 2 . . . . . . . . . . . . . . . . . . . . Repair Stations 8 | . . . . . . . . . . . . . . . . . . . 6 . . . . . . . . . . 2 . . . . Recycling Units 4 | . 2 . 2 . . . . . . . . . . . . . . . . . . . . . . . . . . . . . . . Scanalyzers 5 | . . . . . . . . . . . . . . . . . . . . . . . . . . . . . . 5 . . . . Garrison Access 13 | . . . . . . . . . . . . . . 1 . . . 3 3 . . . . . . . . . . 4 . 2 . . Terminal Hacks 37 | . 1 . . . 2 . 4 2 1 1 . . . . 6 . . . . . . 17 . . . . . . . 2 . 1 . . Record 7 | . . . . . 1 . . . . . . . . . . . . . . . . 5 . . . . . . . 1 . . . . Part Schematic 5 | . 1 . . . . . . . . . . . . . . . . . . . . 4 . . . . . . . . . . . . Robot Analysis 4 | . . . . . . . . . . . . . . . . . . . . . . 4 . . . . . . . . . . . . Prototype ID Bank 4 | . . . . . . . . . . . . . . . . . . . . . . 4 . . . . . . . . . . . . Open Door 10 | . . . . . . . . . 1 1 . . . . 6 . . . . . . . . . . . . . . 1 . 1 . . Branch Access Points 1 | . . . . . . . . 1 . . . . . . . . . . . . . . . . . . . . . . . . . . Machine Index 1 | . . . . . . . . 1 . . . . . . . . . . . . . . . . . . . . . . . . . . Terminal Index 1 | . . . . . . . 1 . . . . . . . . . . . . . . . . . . . . . . . . . . . Alert Level 1 | . . . . . . . 1 . . . . . . . . . . . . . . . . . . . . . . . . . . . Unreport Threat 1 | . . . . . . . 1 . . . . . . . . . . . . . . . . . . . . . . . . . . . Investigation Status 1 | . . . . . . . 1 . . . . . . . . . . . . . . . . . . . . . . . . . . . EX-Prototype ID Bank 1 | . . . . . 1 . . . . . . . . . . . . . . . . . . . . . . . . . . . . . Fabricator Hacks 2 | . . . . . . . . 2 . . . . . . . . . . . . . . . . . . . . . . . . . . Network Status 2 | . . . . . . . . 2 . . . . . . . . . . . . . . . . . . . . . . . . . . Repair Station Hacks 6 | . . . . . . . . . . . . . . . . . . . 4 . . . . . . . . . . 2 . . . . Scan Component 3 | . . . . . . . . . . . . . . . . . . . 2 . . . . . . . . . . 1 . . . . Repair 3 | . . . . . . . . . . . . . . . . . . . 2 . . . . . . . . . . 1 . . . . Recycling Unit Hacks . | . . . . . . . . . . . . . . . . . . . . . . . . . . . . . . . . . . . Scanalyzer 5 | . . . . . . . . . . . . . . . . . . . . . . . . . . . . . . 5 . . . . Insert Component 5 | . . . . . . . . . . . . . . . . . . . . . . . . . . . . . . 5 . . . . Garrison Access Hacks 1 | . . . . . . . . . . . . . . . . . . . . . . . . . . . . . . . . 1 . . Seal Access 1 | . . . . . . . . . . . . . . . . . . . . . . . . . . . . . . . . 1 . . Unauthorized Hacks 15 | . 4 . 1 . . . 3 3 . . . . . 1 . . . 1 1 . . . . . . . . . . 1 . . . . Terminals 6 | . 2 . . . . . 3 1 . . . . . . . . . . . . . . . . . . . . . . . . . . Assimilate 1 | . . . . . . . 1 . . . . . . . . . . . . . . . . . . . . . . . . . . . Botnet 3 | . 1 . . . . . 1 1 . . . . . . . . . . . . . . . . . . . . . . . . . . Operators 2 | . 1 . . . . . 1 . . . . . . . . . . . . . . . . . . . . . . . . . . . Fabricators 2 | . . . . . . . . 2 . . . . . . . . . . . . . . . . . . . . . . . . . . Report 1 | . . . . . . . . 1 . . . . . . . . . . . . . . . . . . . . . . . . . . Liberate 1 | . . . . . . . . 1 . . . . . . . . . . . . . . . . . . . . . . . . . . Repair Stations . | . . . . . . . . . . . . . . . . . . . . . . . . . . . . . . . . . . . Recycling Units 3 | . 2 . 1 . . . . . . . . . . . . . . . . . . . . . . . . . . . . . . . Tunnel 3 | . 2 . 1 . . . . . . . . . . . . . . . . . . . . . . . . . . . . . . . Scanalyzers . | . . . . . . . . . . . . . . . . . . . . . . . . . . . . . . . . . . . Garrison Access 4 | . . . . . . . . . . . . . . 1 . . . 1 1 . . . . . . . . . . 1 . . . . Jam 4 | . . . . . . . . . . . . . . 1 . . . 1 1 . . . . . . . . . . 1 . . . . Data Cores Recovered . | . . . . . . . . . . . . . . . . . . . . . . . . . . . . . . . . . . . Used . | . . . . . . . . . . . . . . . . . . . . . . . . . . . . . . . . . . . Hacking Detections 24 | . 2 . . . . . 4 7 . . . . . 1 4 . . 1 1 . . . . . . . . . . 4 . . . . Full Trace Events 2 | . . . . . . . . 2 . . . . . . . . . . . . . . . . . . . . . . . . . . Feedback Events . | . . . . . . . . . . . . . . . . . . . . . . . . . . . . . . . . . . . Feedback Blocked . | . . . . . . . . . . . . . . . . . . . . . . . . . . . . . . . . . . . Robot Schematics Acquired 7 | . . . . . . . . . . . 3 . . . . . . . . . . . . . . . . . . . . 2 2 . Robots Built . | . . . . . . . . . . . . . . . . . . . . . . . . . . . . . . . . . . . Authchips . | . . . . . . . . . . . . . . . . . . . . . . . . . . . . . . . . . . . Time . | . . . . . . . . . . . . . . . . . . . . . . . . . . . . . . . . . . . Total Robot Build Rating . | . . . . . . . . . . . . . . . . . . . . . . . . . . . . . . . . . . . Part Schematics Acquired 24 | . 1 . . . . . . . . . 15 . . . . . . . . . . 4 . . . . . . . . . 2 2 . Parts Built . | . . . . . . . . . . . . . . . . . . . . . . . . . . . . . . . . . . . Authchips . | . . . . . . . . . . . . . . . . . . . . . . . . . . . . . . . . . . . Time . | . . . . . . . . . . . . . . . . . . . . . . . . . . . . . . . . . . . Total Part Build Rating . | . . . . . . . . . . . . . . . . . . . . . . . . . . . . . . . . . . . Parts Repaired 3 | . . . . . . . . . . . . . . . . . . . 2 . . . . . . . . . . 1 . . . . Time 160 | . . . . . . . . . . . . . . . . . . . 152 . . . . . . . . . . 8 . . . . Parts Recycled . | . . . . . . . . . . . . . . . . . . . . . . . . . . . . . . . . . . . Recycled Matter . | . . . . . . . . . . . . . . . . . . . . . . . . . . . . . . . . . . . Retrieved Matter . | . . . . . . . . . . . . . . . . . . . . . . . . . . . . . . . . . . . Retrieved Components . | . . . . . . . . . . . . . . . . . . . . . . . . . . . . . . . . . . . Parts Scanalyzed . | . . . . . . . . . . . . . . . . . . . . . . . . . . . . . . . . . . . Part Schematics Acquired . | . . . . . . . . . . . . . . . . . . . . . . . . . . . . . . . . . . . Parts Damaged . | . . . . . . . . . . . . . . . . . . . . . . . . . . . . . . . . . . . Bothacking | -11 -10 -10 -9 -9 -9 -8 -8 -7 -7 -7 -7 -7 -6 -6 -6 -6 -6 -6 -5 -5 -5 -5 -4 -4 -4 -4 -4 -3 -3 -3 -2 -2 -2 -1 ------------ Run | Jun Mat Min Mat Min Exi Min Mat Fac Low Low Zio Dee Pro Fac Ext Cet Arc Hub Fac Upp Upp Zhi Pro Fac Upp Upp War Pro Res Qua Res Tes Sec Acc Used RIF Installer . | . . . . . . . . . . . . . . . . . . . . . . . . . . . . . . . . . . . Robots Hacked . | . . . . . . . . . . . . . . . . . . . . . . . . . . . . . . . . . . . Non-combat . | . . . . . . . . . . . . . . . . . . . . . . . . . . . . . . . . . . . Combat . | . . . . . . . . . . . . . . . . . . . . . . . . . . . . . . . . . . . Robot Hacks Applied . | . . . . . . . . . . . . . . . . . . . . . . . . . . . . . . . . . . . Relay Couplers Released 9 | . . . . . . . . . . . . . . . . . . . . . . . . . . . . . . 3 6 . . . Machine Destruction 3 | . . . . . . . . . . . . . . . . . . . . . . . . . . . . . . . 3 . . . Programmers 6 | . . . . . . . . . . . . . . . . . . . . . . . . . . . . . . 3 3 . . . Fabnet Peak Effective % . | . . . . . . . . . . . . . . . . . . . . . . . . . . . . . . . . . . . Robots Rewired 11 | . . . . . 2 . . . . . . . . . 6 . . . . . . . . . 1 2 . . . . . . . . Allies Hacked . | . . . . . . . . . . . . . . . . . . . . . . . . . . . . . . . . . . . Hacks Repelled . | . . . . . . . . . . . . . . . . . . . . . . . . . . . . . . . . . . . Allies | -11 -10 -10 -9 -9 -9 -8 -8 -7 -7 -7 -7 -7 -6 -6 -6 -6 -6 -6 -5 -5 -5 -5 -4 -4 -4 -4 -4 -3 -3 -3 -2 -2 -2 -1 -------- Run | Jun Mat Min Mat Min Exi Min Mat Fac Low Low Zio Dee Pro Fac Ext Cet Arc Hub Fac Upp Upp Zhi Pro Fac Upp Upp War Pro Res Qua Res Tes Sec Acc Total Allies 33 | . . 1 . . 2 . . . . . 8 . . . 19 . . . . . . . . . 1 2 . . . . . . . . Largest Group 17 | . . 1 . . 2 2 . . . . 8 8 . . 17 16 2 1 . . . . . . 1 2 2 . . . . . . . Highest-Rated Group 664 | . . 31 . . 16 16 . . . . 219 219 . . 664 627 65 39 . . . . . . 48 94 94 . . . . . . . Highest-Rated Ally 159 | . . 31 . . 8 8 . . . . 31 31 . . 159 153 39 39 . . . . . . 48 47 47 . . . . . . . Total Orders 49 | . . . . . . . . . . . . . . 6 7 2 2 4 6 . . . . 2 1 . 3 . . 6 . 4 4 2 STAY 10 | . . . . . . . . . . . . . . 1 3 1 1 . . . . . . . 1 . 3 . . . . . . . ROAM 1 | . . . . . . . . . . . . . . . . . . . 1 . . . . . . . . . . . . . . . FOLLOW 5 | . . . . . . . . . . . . . . . 3 1 1 . . . . . . . . . . . . . . . . . EXPLORE 2 | . . . . . . . . . . . . . . . . . . . 2 . . . . . . . . . . . . . . . RETURN 31 | . . . . . . . . . . . . . . 5 1 . . 4 3 . . . . 2 . . . . . 6 . 4 4 2 Ally Attacks 300 | . . 3 . . . 11 . . . . . 67 . . 108 79 6 12 . . . . . . 4 . 10 . . . . . . . Total Damage 5103 | . . 42 . . . 56 . . . . . 814 . . 1917 1446 125 290 . . . . . . 173 . 240 . . . . . . . Kills 45 | . . 2 . . . 1 . . . . . 5 . . 17 14 2 2 . . . . . . . . 2 . . . . . . . Allies Corrupted . | . . . . . . . . . . . . . . . . . . . . . . . . . . . . . . . . . . . Allies Melted 1 | . . . . . . . . . . . . . . . . . . . . . . . . . . . . . . . 1 . . . Intel | -11 -10 -10 -9 -9 -9 -8 -8 -7 -7 -7 -7 -7 -6 -6 -6 -6 -6 -6 -5 -5 -5 -5 -4 -4 -4 -4 -4 -3 -3 -3 -2 -2 -2 -1 ------- Run | Jun Mat Min Mat Min Exi Min Mat Fac Low Low Zio Dee Pro Fac Ext Cet Arc Hub Fac Upp Upp Zhi Pro Fac Upp Upp War Pro Res Qua Res Tes Sec Acc Robot Analysis Total 4 | . . . . . . . . . . . . . . . . . . . . . . 4 . . . . . . . . . . . . Derelict Logs Recovered 12 | . . 1 . 1 . . . . 1 3 . . . . . . . . . 1 1 . 2 . 1 1 . . . . . . . . Drone Launches 34 | . . . . . . . . . . . . . . 5 1 . . 4 6 . . . . 2 . . . . . 6 . 4 4 2 Drone Recoveries 32 | . . . . . . . . . . . . . . 5 1 . . 4 4 . . . . 2 . . . . . 6 . 4 4 2 Exploration | -11 -10 -10 -9 -9 -9 -8 -8 -7 -7 -7 -7 -7 -6 -6 -6 -6 -6 -6 -5 -5 -5 -5 -4 -4 -4 -4 -4 -3 -3 -3 -2 -2 -2 -1 ------------- Run | Jun Mat Min Mat Min Exi Min Mat Fac Low Low Zio Dee Pro Fac Ext Cet Arc Hub Fac Upp Upp Zhi Pro Fac Upp Upp War Pro Res Qua Res Tes Sec Acc Turns Passed 50943 | . 1065 1759 1376 1138 863 998 1298 2157 1554 1543 1191 3138 770 1068 1975 454 775 1165 1702 1597 1947 294 1495 657 1723 2053 1491 893 1873 1956 4681 1363 1745 1186 Spaces Moved 21439 | 1 523 668 382 604 444 510 366 929 1040 1047 812 1400 307 391 714 170 208 354 654 783 955 156 691 260 824 847 522 319 540 901 1662 525 495 435 Core . | . . . . . . . . . . . . . . . . . . . . . . . . . . . . . . . . . . . Treads 6215 | . 523 668 253 . . . 139 148 . . . . . . . . . . 2 . 2 . . . 3 333 522 319 540 92 1557 200 479 435 Legs 3033 | 1 . . . . . . . 162 . . . 311 307 391 687 170 208 354 . . . . . . . . . . . . 101 325 16 . Wheels 12191 | . . . 129 604 444 510 227 619 1040 1047 812 1089 . . 27 . . . 652 783 953 156 691 260 821 514 . . . 809 4 . . . Hover . | . . . . . . . . . . . . . . . . . . . . . . . . . . . . . . . . . . . Flight . | . . . . . . . . . . . . . . . . . . . . . . . . . . . . . . . . . . . Fastest Speed 120 | 120 160 160 160 185 185 185 185 130 145 130 130 130 240 240 205 185 240 210 130 190 190 175 190 190 190 205 250 250 239 145 160 179 179 155 Average Speed 198 | 120 160 210 269 185 185 185 303 180 145 144 142 165 240 240 231 235 240 239 187 190 190 180 190 190 195 222 250 250 248 166 242 210 235 156 Slowest Speed 720 | 120 160 240 400 185 185 185 720 480 145 145 145 260 240 240 240 240 240 240 320 190 320 190 190 190 360 250 250 250 270 270 320 330 240 160 Overloaded Moves . | . . . . . . . . . . . . . . . . . . . . . . . . . . . . . . . . . . . Propulsion Burnouts . | . . . . . . . . . . . . . . . . . . . . . . . . . . . . . . . . . . . Robots Hopped 1 | . . . . . . . . . . . . . . . . . . . . . . . . . . . . . . . . 1 . . Cave-ins Triggered 1 | . . . . . . . . . . . . . . . . . . . . . . . . . . . . . . . 1 . . . Teleports 1 | . . . . . . . . . . . . . . . . . . . . . . . 1 . . . . . . . . . . . Exploration Rate (%) 62 | 2 93 92 43 99 88 97 39 34 94 93 81 76 55 14 79 66 76 36 20 89 89 60 71 9 90 91 77 51 15 91 62 66 22 18 Regions Visited 34 Branch Regions 24 Pre-discovered Areas 11 | . 2 1 1 . 1 . . . . 1 . . . . . . . . . 1 . 3 1 . . . . . . . . . . . Known Exits Taken 25 | . . . . . . . . 1 1 1 1 . 1 1 1 1 1 1 1 1 1 1 1 1 1 1 1 1 1 1 1 1 1 . Unknown Exits Taken 9 | 1 1 1 1 1 1 1 1 . . . . 1 . . . . . . . . . . . . . . . . . . . . . . Scrap Searched 26 | . . 1 . 1 . 3 . . 2 2 . . 1 . . . . . . 4 4 . 3 . 4 1 . . . . . . . . Spaces Dug 157 | . 12 6 . . . . 2 11 . 27 . 2 12 2 . . . . 7 . 3 . 30 3 2 . 2 . 2 3 10 1 9 11 Terrain Destroyed 1748 | . 55 15 48 . . . 10 68 50 34 . 114 20 5 6 1 11 331 44 10 89 . 110 30 126 159 47 115 29 21 121 10 37 32 Melee 14 | . . . . . . . 2 11 . 1 . . . . . . . . . . . . . . . . . . . . . . . . Projectile 323 | . . . . . . . . . 2 . . 8 20 5 6 1 11 25 23 10 18 . 31 13 7 1 5 1 20 9 32 10 37 28 AOE 1411 | . 55 15 48 . . . 8 57 48 33 . 106 . . . . . 306 21 . 71 . 79 17 119 158 42 114 9 12 89 . . 4 Terrain Rammed . | . . . . . . . . . . . . . . . . . . . . . . . . . . . . . . . . . . . Walls Destroyed . | . . . . . . . . . . . . . . . . . . . . . . . . . . . . . . . . . . . Machines Disabled . | . . . . . . . . . . . . . . . . . . . . . . . . . . . . . . . . . . . Actions | -11 -10 -10 -9 -9 -9 -8 -8 -7 -7 -7 -7 -7 -6 -6 -6 -6 -6 -6 -5 -5 -5 -5 -4 -4 -4 -4 -4 -3 -3 -3 -2 -2 -2 -1 --------- Run | Jun Mat Min Mat Min Exi Min Mat Fac Low Low Zio Dee Pro Fac Ext Cet Arc Hub Fac Upp Upp Zhi Pro Fac Upp Upp War Pro Res Qua Res Tes Sec Acc Total 27312 | . 655 953 567 613 482 529 472 1191 1066 1072 849 2182 321 501 982 208 419 540 1043 890 1048 170 799 369 901 951 659 382 907 1211 2048 728 873 731 Wait 2842 | . 30 240 24 4 . . 15 43 1 9 23 556 4 61 93 3 154 95 277 89 53 . 46 41 16 29 79 16 185 91 126 80 240 119 Move 21404 | . 522 667 381 603 443 509 365 928 1039 1046 811 1399 306 390 713 169 207 353 653 782 954 155 690 259 823 846 521 318 539 900 1662 522 494 435 Hop 1 | . . . . . . . . . . . . . . . . . . . . . . . . . . . . . . . . 1 . . Pick Up 340 | . 17 2 28 . 4 1 11 21 5 4 3 57 1 9 4 5 3 3 14 4 4 3 2 6 6 3 5 . 21 38 22 16 7 11 Fast Attach 178 | . 3 . 11 . . . 10 15 . . 3 9 . . 3 4 6 4 5 2 . 4 2 8 4 2 1 . 13 20 26 15 5 3 Attach 226 | . 6 3 9 . . . 7 11 2 1 . 18 . 4 3 2 1 4 12 2 3 1 3 6 4 5 1 8 22 26 27 14 4 17 Detach 77 | . . . 2 . . . 3 1 . . . 14 . 1 1 1 . 1 4 . . 1 . 1 1 . 2 2 2 20 9 10 . 1 Swap 251 | . 7 2 7 . 1 . 4 24 6 4 2 13 . 14 6 1 2 15 18 7 10 . 9 8 10 10 5 3 12 15 12 9 9 6 Drop 332 | . 12 . 14 . 5 1 12 34 2 4 6 69 . 9 4 8 9 2 8 4 2 6 . 9 8 1 3 4 8 15 25 27 8 13 Fire 1441 | . 58 30 88 6 3 18 43 103 11 3 1 47 10 13 26 15 37 63 52 . 21 . 47 31 25 36 42 31 104 81 137 33 103 123 Melee 20 | . . . . . . . 2 11 . 1 . . . . . . . . . . . . . . . . . . . 5 . 1 . . Ram . | . . . . . . . . . . . . . . . . . . . . . . . . . . . . . . . . . . . Kick 4 | . . . . . . . . . . . . . . . 2 . . . . . . . . . . . . . . . 2 . . . Crush 20 | . . 9 3 . . . . . . . . . . . . . . . . . 1 . . . . . . . 1 . . . 3 3 Escape Stasis 30 | . . . . . . . . . . . . . . . 30 . . . . . . . . . . . . . . . . . . . Rewire 146 | . . . . . 26 . . . . . . . . . 97 . . . . . . . . . 4 19 . . . . . . . . Trap . | . . . . . . . . . . . . . . . . . . . . . . . . . . . . . . . . . . . Miscellaneous . | . . . . . . . . . . . . . . . . . . . . . . . . . . . . . . . . . . . Route ------- -11/Junkyard -10/Materials (discovered 5 exits: *Mat x3 / [*Min x2]) -10/Mines (discovered 2 exits: *Mat x2) -9/Materials (discovered 3 exits: *Mat / [*Min x2]) -9/Mines (discovered 4 exits: *Mat x2 / *Exi / *Zio) -9/Exiles -8/Mines (discovered 2 exits: *Mat x2) -8/Materials -7/Factory (discovered 4 exits: *Sto x2 / *Low x2) -7/Lower Caves -7/Lower Caves (discovered 2 exits: *Fac / *Zio) -7/Zion (discovered 2 exits: *Dee / [*Pro]) -7/Deep Caves -6/Proximity Caves -6/Factory (discovered 5 exits: Fac x4 / *Ext) -6/Extension (discovered 2 exits: *Fac / *Cet) -6/Cetus (discovered 2 exits: *Fac / *Arc) -6/Archives (discovered 2 exits: *Hub x2) -6/Hub_04(d) (discovered 4 exits: *Fac x4) -5/Factory (discovered 2 exits: *Upp x2) -5/Upper Caves -5/Upper Caves (discovered 2 exits: *Fac / *Zhi) -5/Zhirov -4/Proximity Caves -4/Factory -4/Upper Caves -4/Upper Caves (discovered 2 exits: *Res / *War) -4/Warlord -3/Proximity Caves -3/Research (discovered 2 exits: *Qua x2) -3/Quarantine -2/Research (discovered 4 exits: *Acc x3 / *Tes) -2/Testing (discovered 2 exits: *Acc / *Sec) -2/Section 7 -1/Access History --------- Turn | Location | Event 1 | -11/Junkyard | Discovered new exit (range 0) 1 | -11/Junkyard | Entered Materials 302 | -10/Materials | Build established: Mutant 323 | -10/Materials | Discovered new exit (range 8) 573 | -10/Materials | Discovered new exit (range 15) 781 | -10/Materials | Central database locked down 803 | -10/Materials | Discovered new exit (range 7) 896 | -10/Materials | Discovered new exit (range 5) 1050 | -10/Materials | Discovered new exit (range 8) 1066 | -10/Materials | Entered Mines 1108 | -10/Mines | Discovered new exit (range 5) 1222 | -10/Mines | Received a Mining Laser from a helpful Derelict 1274 | -10/Mines | Excavation squad dispatched 1274 | -10/Mines | A large section of the Mines collapsed 1716 | -10/Mines | Received a Rocket Launcher from a helpful Derelict 1879 | -10/Mines | Found a hidden stash of uninstalled traps 1972 | -10/Mines | Discovered new exit (range 10) 2301 | -10/Mines | A weapon hastily lodged in a ceiling crevice suddenly fell to the ground 2393 | -10/Mines | Learned location of Zion (-7) 2825 | -10/Mines | Entered Materials 2825 | -9/Materials | Evolved 2 slots: Propulsion x1, Utility x1 2837 | -9/Materials | Discovered new exit (range 16) 3267 | -9/Materials | Discovered new exit (range 8) 3389 | -9/Materials | Build established: Hauler-Mutant 3410 | -9/Materials | Lost 3 parts (1p1n1w) 3424 | -9/Materials | Destroyed 10 combat bots 3970 | -9/Materials | Discovered new exit (range 12) 4095 | -9/Materials | Core integrity fell below 50% 4201 | -9/Materials | Entered Mines 4431 | -9/Mines | Discovered new exit (range 5) 4432 | -9/Mines | A Derelict revealed a hidden shortcut to a safe place 4481 | -9/Mines | Learned Materials emergency access door positions 4794 | -9/Mines | Discovered new exit (range 11) 4935 | -9/Mines | Deemed a non-threat by the Exiles lab entrance 4935 | -9/Mines | Discovered new exit (range 5) 5339 | -9/Mines | Entered Exiles 5339 | -9/Exiles | Found Exiles lab destroyed 6008 | -9/Exiles | Opened EX-Vault 6023 | -9/Exiles | Found Firepult 6184 | -9/Exiles | Discovered new exit (range 12) 6202 | -9/Exiles | Entered Mines 6202 | -8/Mines | Accompanied by 2 allies 6644 | -8/Mines | Discovered new exit (range 9) 7016 | -8/Mines | Discovered new exit (range 13) 7200 | -8/Mines | Entered Materials 7200 | -8/Materials | Evolved 2 slots: Propulsion x1, Utility x1 8218 | -8/Materials | Discovered new exit (range 16) 8498 | -8/Materials | Entered Factory 8498 | -7/Factory | Evolved 2 slots: Utility x2 8672 | -7/Factory | Destroyed 7 combat bots 9960 | -7/Factory | Discovered new exit (range 5) 10082 | -7/Factory | Build established: Hacker-Mutant 10234 | -7/Factory | Garrison activated, responded to threat 10371 | -7/Factory | Core integrity fell below 50% 10530 | -7/Factory | First assault squad dispatched 10566 | -7/Factory | Identified exit to Storage 10566 | -7/Factory | Identified exit to Lower Caves 10655 | -7/Factory | Entered Lower Caves 10718 | -7/Lower Caves | Build established: Hauler-Mutant 10786 | -7/Lower Caves | Encountered a Warlord checkpoint 10791 | -7/Lower Caves | Learned Factory terminal intel 11088 | -7/Lower Caves | Spotted B-75 Beast 11203 | -7/Lower Caves | Discovered new exit (range 15) 12208 | -7/Lower Caves | Identified exit to Lower Caves 12209 | -7/Lower Caves | Entered another Lower Caves area 12218 | -7/Lower Caves | Discovered new exit (range 13) 12295 | -7/Lower Caves | Identified exit to Factory 12331 | -7/Lower Caves | Learned Factory terminal intel 13031 | -7/Lower Caves | Learned Factory interactive machine intel 13394 | -7/Lower Caves | Discovered new exit (range 6) 13401 | -7/Lower Caves | Identified exit to Zion 13402 | -7/Lower Caves | Encountered a Warlord checkpoint 13445 | -7/Lower Caves | Attracted the attention of an 0b10 checkpoint 13752 | -7/Lower Caves | Entered Zion 13783 | -7/Zion | Acquired unknown access codes intercepted by a Zionite 13818 | -7/Zion | System corruption cleaned by Quarantine Array 13837 | -7/Zion | Discovered new exit (range 16) 13879 | -7/Zion | Given the Hacking Drone Bay 13879 | -7/Zion | Found Prototype Device 13893 | -7/Zion | Identified Hacking Drone Bay 14226 | -7/Zion | Received a visual enhancement algorithm 14544 | -7/Zion | Found GAL Module 14732 | -7/Zion | Gained Derelict followers 14771 | -7/Zion | Opened final containment barrier to the Deep Caves 14826 | -7/Zion | Gained Derelict followers 14908 | -7/Zion | Discovered new exit (range 5) 14911 | -7/Zion | Saw the warning signs outside the Deep Caves entrance 14916 | -7/Zion | Identified exit to Deep Caves 14943 | -7/Zion | Entered Deep Caves 14943 | -7/Deep Caves | Accompanied by 8 allies 15206 | -7/Deep Caves | Attacked by Z-Imprinter 15221 | -7/Deep Caves | Allies destroyed Z-Imprinter 15504 | -7/Deep Caves | Found Prototype Protection 15504 | -7/Deep Caves | Identified Zio. Weapon Casing 15584 | -7/Deep Caves | Found Prototype Protection 15584 | -7/Deep Caves | Identified Zio. Heavy Carapace 15631 | -7/Deep Caves | Found Zio. Weapon Casing 15838 | -7/Deep Caves | Found Prototype Device 15838 | -7/Deep Caves | Identified Zio. Metafield Generator 16293 | -7/Deep Caves | Discovered new exit (range 9) 16444 | -7/Deep Caves | Spotted as-60671 16473 | -7/Deep Caves | Destroyed as-60671 16481 | -7/Deep Caves | Found GOLEM Unit 16712 | -7/Deep Caves | Spotted as-59185 16741 | -7/Deep Caves | Core integrity fell below 20% 16752 | -7/Deep Caves | Destroyed as-59185 16762 | -7/Deep Caves | Found GOLEM Unit 16773 | -7/Deep Caves | Found AWS/Thermal 17670 | -7/Deep Caves | Build established: Hauler-Golem 17748 | -7/Deep Caves | Found Surveybot 24 Scanner 17752 | -7/Deep Caves | Found Surveybot 24 Chip 18081 | -7/Deep Caves | Entered Proximity Caves 18788 | -6/Proximity Caves | Discovered exit to Factory (range 16) 18851 | -6/Proximity Caves | Entered Factory 18851 | -6/Factory | Evolved 2 slots: Power x1, Utility x1 18852 | -6/Factory | Loaded intel: 54 interactive machine locations 18853 | -6/Factory | Loaded intel: 28 terminal locations 19477 | -6/Factory | Identified exit to Factory 19653 | -6/Factory | Build established: Hauler-Mutant 19883 | -6/Factory | Discovered new exit (range 15) 19917 | -6/Factory | Identified exit to Extension 19919 | -6/Factory | Entered Extension 20013 | -6/Extension | Rescued a captive Derelict 20015 | -6/Extension | Rescued a captive Derelict 20282 | -6/Extension | Rescued a captive Derelict 20283 | -6/Extension | Rescued a captive Derelict 20401 | -6/Extension | Rescued a captive Derelict 20403 | -6/Extension | Rescued a captive Derelict 20618 | -6/Extension | Rescued a captive Derelict 20718 | -6/Extension | Rescued a captive Derelict 21223 | -6/Extension | Spotted B-75 Beast 21224 | -6/Extension | Allies destroyed B-75 Beast 21242 | -6/Extension | Spotted B-75 Beast 21253 | -6/Extension | Allies destroyed B-75 Beast 21335 | -6/Extension | Rescued a captive Derelict 21364 | -6/Extension | Rescued A7 21378 | -6/Extension | Rescued a captive Derelict 21536 | -6/Extension | Rescued a captive Derelict 21536 | -6/Extension | Rescued a captive Derelict 21794 | -6/Extension | Discovered exit to Factory (range 10) 21796 | -6/Extension | Discovered new exit (range 6) 21833 | -6/Extension | Identified exit to Cetus 21894 | -6/Extension | Entered Cetus 21894 | -6/Cetus | Accompanied by 16 allies (A7) 21899 | -6/Cetus | Acquired a Cetus Manufacturing Module code from A7 21923 | -6/Cetus | Spotted Cetus Guard 21923 | -6/Cetus | Spotted Cetus Guard 21925 | -6/Cetus | Spotted Cetus Guard 21926 | -6/Cetus | Spotted Cetus Guard 21928 | -6/Cetus | Allies destroyed Cetus Guard 21935 | -6/Cetus | Allies destroyed Cetus Guard 21937 | -6/Cetus | Allies destroyed Cetus Guard 21990 | -6/Cetus | System corruption reached 10% 22034 | -6/Cetus | Cetus Manufacturing Module disabled 22092 | -6/Cetus | Escorted A7 to Cetus Mainframe 22121 | -6/Cetus | Discovered new exit (range 16) 22161 | -6/Cetus | Spotted Cetus Guard 22162 | -6/Cetus | Spotted Cetus Guard 22165 | -6/Cetus | Spotted Cetus Guard 22184 | -6/Cetus | Allies destroyed Cetus Guard 22184 | -6/Cetus | Allies destroyed Cetus Guard 22188 | -6/Cetus | Allies destroyed Cetus Guard 22188 | -6/Cetus | Spotted Cetus Guard 22189 | -6/Cetus | Allies destroyed Cetus Guard 22189 | -6/Cetus | Discovered exit to Factory (range 15) 22192 | -6/Cetus | Destroyed A7 22196 | -6/Cetus | Extracted ID and sensor layout for unrecognized location from A7's data core 22205 | -6/Cetus | Met Revision 17 22338 | -6/Cetus | Identified exit to Archives 22348 | -6/Cetus | Entered Archives 22348 | -6/Archives | Accompanied by 2 allies 22677 | -6/Archives | Discovered new exit (range 15) 22753 | -6/Archives | Discovered new exit (range 15) 22793 | -6/Archives | Identified exit to Hub_04(d) 23123 | -6/Archives | Entered Hub_04(d) 23123 | -6/Hub_04(d) | Accompanied by 1 ally 24271 | -6/Hub_04(d) | Network Hub disabled 24285 | -6/Hub_04(d) | Network Hub disabled 24288 | -6/Hub_04(d) | Entered Factory 24288 | -5/Factory | Evolved 2 slots: Utility x2 24289 | -5/Factory | Loaded intel: 26 terminal locations 24523 | -5/Factory | Build established: Scavenger-Mutant 24715 | -5/Factory | Identified exit to Upper Caves 25020 | -5/Factory | Build established: Hauler-Mutant 25447 | -5/Factory | Garrison activated, responded to threat 25483 | -5/Factory | Lost 4 parts (1p1n2u) 25737 | -5/Factory | Repaired Centrium Medium Armor Plating 25782 | -5/Factory | Repaired Arm. Huge Wheel 25990 | -5/Factory | Entered Upper Caves 26012 | -5/Upper Caves | Encountered a Warlord checkpoint 26055 | -5/Upper Caves | Spotted B-75 Beast 26411 | -5/Upper Caves | Learned location of Armory (-3) 27316 | -5/Upper Caves | Attracted the attention of an 0b10 checkpoint 27385 | -5/Upper Caves | Discovered new exit (range 7) 27395 | -5/Upper Caves | Identified exit to Upper Caves 27587 | -5/Upper Caves | Entered another Upper Caves area 27737 | -5/Upper Caves | Discovered new exit (range 4) 28504 | -5/Upper Caves | Learned Factory stockpile data 29170 | -5/Upper Caves | Spotted B-75 Beast 29240 | -5/Upper Caves | Attracted the attention of an 0b10 checkpoint 29397 | -5/Upper Caves | Discovered new exit (range 6) 29409 | -5/Upper Caves | Identified exit to Zhirov 29534 | -5/Upper Caves | Entered Zhirov 29535 | -5/Zhirov | Discovered new exit (range 3) 29567 | -5/Zhirov | Met Zhirov 29605 | -5/Zhirov | Learned location of Quarantine (-3) 29605 | -5/Zhirov | Learned location of Command (-1) 29616 | -5/Zhirov | Zhirov requested help retrieving the SGEMP Prototype 29655 | -5/Zhirov | Found Alien Artifact 29655 | -5/Zhirov | Identified Integrated Reactor 29655 | -5/Zhirov | Installed Integrated Reactor, increased core energy generation (+10) 29743 | -5/Zhirov | Found Alien Artifact 29825 | -5/Zhirov | Identified exit to Proximity Caves 29828 | -5/Zhirov | Entered Proximity Caves 29831 | -4/Proximity Caves | Spotter reported a threat 29831 | -4/Proximity Caves | Spotter reported a threat 30031 | -4/Proximity Caves | Spotter reported a threat 30180 | -4/Proximity Caves | Spotter reported a threat 30246 | -4/Proximity Caves | Spotter reported a threat 30688 | -4/Proximity Caves | Spotted B-86 Titan 30723 | -4/Proximity Caves | Identified Transdimensional Reconstructor 30723 | -4/Proximity Caves | Warped through subspace 30954 | -4/Proximity Caves | Discovered new exit (range 10) 30973 | -4/Proximity Caves | Identified exit to Factory 31217 | -4/Proximity Caves | Learned Research terminal intel 31323 | -4/Proximity Caves | Entered Factory 31323 | -4/Factory | Evolved 2 slots: Utility x2 31605 | -4/Factory | Search patrols dispatched 31725 | -4/Factory | Build established: Hauler-Skirmisher 31864 | -4/Factory | Search patrols dispatched 31954 | -4/Factory | Discovered new exit (range 5) 31959 | -4/Factory | Identified exit to Upper Caves 31980 | -4/Factory | Entered Upper Caves 32199 | -4/Upper Caves | Build established: Hauler-Mutant 32476 | -4/Upper Caves | Attracted the attention of an 0b10 outpost 32598 | -4/Upper Caves | Learned location of 1 exit from Research 32811 | -4/Upper Caves | Found Alien Artifact 32960 | -4/Upper Caves | Encountered a Warlord checkpoint 33065 | -4/Upper Caves | Attracted the attention of an 0b10 checkpoint 33673 | -4/Upper Caves | Discovered new exit (range 15) 33701 | -4/Upper Caves | Identified exit to Upper Caves 33703 | -4/Upper Caves | Entered another Upper Caves area 33769 | -4/Upper Caves | Discovered new exit (range 16) 34007 | -4/Upper Caves | Identified exit to Research 34772 | -4/Upper Caves | Attracted the attention of an 0b10 checkpoint 34797 | -4/Upper Caves | Attracted the attention of an 0b10 outpost 34825 | -4/Upper Caves | Destroyed 7 combat bots 34867 | -4/Upper Caves | Lost 4 parts (1p1n2u) 34919 | -4/Upper Caves | System corruption reached 10% 35304 | -4/Upper Caves | Discovered new exit (range 14) 35326 | -4/Upper Caves | Learned location of 1 exit from Proximity Caves 35334 | -4/Upper Caves | Identified exit to Warlord 35756 | -4/Upper Caves | Entered Warlord 35756 | -4/Warlord | Accompanied by 2 allies 35846 | -4/Warlord | System corruption cleaned by Quarantine Array 36672 | -4/Warlord | Met Warlord 36680 | -4/Warlord | Warlord's base attacked by MAIN.C 36978 | -4/Warlord | Destroyed 11 combat bots 37030 | -4/Warlord | Warlord forces counterattacked 37193 | -4/Warlord | Spotted Executioner 37198 | -4/Warlord | Destroyed Executioner 37219 | -4/Warlord | Destroyed 10 combat bots 37229 | -4/Warlord | Discovered new exit (range 8) 37244 | -4/Warlord | Identified exit to Proximity Caves 37247 | -4/Warlord | Entered Proximity Caves 37557 | -3/Proximity Caves | Attracted the attention of an 0b10 checkpoint 37683 | -3/Proximity Caves | Attracted the attention of an 0b10 outpost 37714 | -3/Proximity Caves | Destroyed 8 combat bots 37758 | -3/Proximity Caves | Destroyed 7 combat bots 38140 | -3/Proximity Caves | Entered Research 38140 | -3/Research | Evolved 2 slots: Utility x2 38141 | -3/Research | Identified exit to Quarantine 38142 | -3/Research | Loaded intel: 22 terminal locations 38528 | -3/Research | Build established: Hauler-Skirmisher 38992 | -3/Research | Lost 6 parts (5u1w) 39101 | -3/Research | Spotted B-86 Titan 39129 | -3/Research | Destroyed B-86 Titan 39153 | -3/Research | Lost 6 parts (1p2n1u2w) 39307 | -3/Research | Lost 4 parts (1p2u1w) 39813 | -3/Research | Lost 4 parts (1p1n1u1w) 39996 | -3/Research | Discovered exit to Quarantine (range 6) 40013 | -3/Research | Entered Quarantine 40072 | -3/Quarantine | Lost 4 parts (1p1n2u) 40082 | -3/Quarantine | Destroyed 7 combat bots 40101 | -3/Quarantine | Found Alien Reactor 40154 | -3/Quarantine | Repaired Cargo Storage Unit 40330 | -3/Quarantine | System corruption reached 10% 40395 | -3/Quarantine | Core integrity fell below 50% 40462 | -3/Quarantine | Found Prototype Launcher 40545 | -3/Quarantine | Found Launcher Loader 40550 | -3/Quarantine | Found Fusion Bomb Launcher 40620 | -3/Quarantine | Found Alien Artifact 40621 | -3/Quarantine | Identified Subatomic Replicator 40755 | -3/Quarantine | Found Adv. Powered Armor 40795 | -3/Quarantine | Found Alien Artifact 40859 | -3/Quarantine | Identified Adv. Micro-nuke Launcher 41102 | -3/Quarantine | Identified Phase Redirector 41133 | -3/Quarantine | Discovered new exit (range 8) 41169 | -3/Quarantine | Identified exit to Research 41449 | -3/Quarantine | Found Alien Impact Weapon 41449 | -3/Quarantine | Identified Core Stripper 41532 | -3/Quarantine | Build established: Hauler-Mutant 41542 | -3/Quarantine | Found Alien Artifact 41552 | -3/Quarantine | Found Alien Artifact 41566 | -3/Quarantine | Found Alien Artifact 41669 | -3/Quarantine | Spotted Alpha 7 41683 | -3/Quarantine | Destroyed Alpha 7 41697 | -3/Quarantine | Found Prototype Device 41697 | -3/Quarantine | Identified Exp. ECM Suite 41701 | -3/Quarantine | Found Prototype Processor 41701 | -3/Quarantine | Identified Exp. Target Analyzer 41704 | -3/Quarantine | Found Prototype Processor 41704 | -3/Quarantine | Identified Exp. Targeting Computer 41708 | -3/Quarantine | Found Unknown Device 41708 | -3/Quarantine | Identified Antimissile System 41713 | -3/Quarantine | Found Prototype Ballistic Gun 41713 | -3/Quarantine | Identified Multirail 41850 | -3/Quarantine | Found Alien Artifact 41934 | -3/Quarantine | Identified Core Reset Matrix 41934 | -3/Quarantine | Identified Terrabomb (x3) 41934 | -3/Quarantine | Identified Matter Drive 41934 | -3/Quarantine | Identified Dimensional Node Initializer 41969 | -3/Quarantine | Entered Research 41969 | -2/Research | Warlord forces began assault on 0b10 41969 | -2/Research | Evolved 2 slots: Propulsion x1, Utility x1 42020 | -2/Research | Found Faulty Exp. Target Analyzer 42026 | -2/Research | Found Exp. Target Analyzer 42079 | -2/Research | Research machine network offline 42092 | -2/Research | Met up with Warlord 42099 | -2/Research | Used Terrabomb 42261 | -2/Research | Discovered new exit (range 8) 42278 | -2/Research | Identified exit to Access 42378 | -2/Research | Borebot progress halted 42442 | -2/Research | Borebot progress halted 42531 | -2/Research | Borebot progress halted 42891 | -2/Research | Build established: Hauler-Skirmisher 42970 | -2/Research | Warlord invited to help at Command 43370 | -2/Research | Discovered exit to Access (range 9) 43582 | -2/Research | Spotted Executioner 43590 | -2/Research | Destroyed Executioner 43697 | -2/Research | Spotted Striker 43730 | -2/Research | Destroyed Striker 43760 | -2/Research | Crushed by falling debris 44004 | -2/Research | Build established: Hauler-Mutant 44578 | -2/Research | Discovered exit to Access (range 15) 44627 | -2/Research | Spotted Striker 44648 | -2/Research | Destroyed Striker 45264 | -2/Research | Spotted Striker 45272 | -2/Research | Spotted Executioner 45272 | -2/Research | Spotted Executioner 45278 | -2/Research | Destroyed Striker 45296 | -2/Research | Destroyed Executioner 45319 | -2/Research | Found Prototype Processor 45319 | -2/Research | Identified Exp. Core Analyzer 45339 | -2/Research | Lost 3 parts (2u1w) 45420 | -2/Research | Spotted Executioner 45421 | -2/Research | Spotted Executioner 45444 | -2/Research | Destroyed Executioner 45479 | -2/Research | Found Exp. Targeting Computer 45487 | -2/Research | Found Prototype Device 45487 | -2/Research | Identified Adv. Kinecellerator 45528 | -2/Research | Spotted Executioner 45530 | -2/Research | Destroyed Executioner 45530 | -2/Research | Spotted Executioner 45533 | -2/Research | Destroyed Executioner 45537 | -2/Research | Spotted Striker 45562 | -2/Research | Destroyed Striker 45592 | -2/Research | Spotted Striker 45602 | -2/Research | Destroyed Striker 45606 | -2/Research | Spotted Striker 45611 | -2/Research | Destroyed Striker 45630 | -2/Research | Lost 5 parts (1p3u1w) 45643 | -2/Research | Destroyed 8 combat bots 45884 | -2/Research | Spotted Striker 45912 | -2/Research | Spotted Striker 45939 | -2/Research | Destroyed Striker 46056 | -2/Research | Spotted Striker 46057 | -2/Research | Spotted Executioner 46067 | -2/Research | Destroyed Striker 46080 | -2/Research | Destroyed Executioner 46122 | -2/Research | Spotted Striker 46132 | -2/Research | Destroyed Striker 46135 | -2/Research | Spotted Executioner 46155 | -2/Research | Destroyed Executioner 46170 | -2/Research | Spotted Executioner 46188 | -2/Research | Destroyed Executioner 46208 | -2/Research | Lost 8 parts (1p2n4u1w) 46300 | -2/Research | Spotted Striker 46303 | -2/Research | Spotted Striker 46314 | -2/Research | Destroyed Striker 46315 | -2/Research | Destroyed Striker 46484 | -2/Research | Spotted Executioner 46487 | -2/Research | Spotted Striker 46490 | -2/Research | Destroyed Executioner 46498 | -2/Research | Spotted Striker 46506 | -2/Research | Core integrity fell below 50% 46506 | -2/Research | Destroyed Striker 46533 | -2/Research | Destroyed Striker 46534 | -2/Research | Lost 4 parts (1p1n2u) 46554 | -2/Research | Destroyed 11 combat bots 46632 | -2/Research | Discovered new exit (range 6) 46642 | -2/Research | Identified exit to Testing 46650 | -2/Research | Entered Testing 46712 | -2/Testing | Found Prototype Protection 47393 | -2/Testing | Found Prototype Leg 47393 | -2/Testing | Identified Myomer Exoskeleton 47816 | -2/Testing | Spotted Fortress 47821 | -2/Testing | Identified SHELL Armor 47829 | -2/Testing | Destroyed Fortress 47834 | -2/Testing | Found Prototype Device 47834 | -2/Testing | Identified Exp. Force Field 47844 | -2/Testing | Found Prototype Device 47844 | -2/Testing | Identified Thermal Barrier 47850 | -2/Testing | Found Prototype Reactor 47850 | -2/Testing | Identified Vortex Chain Reactor 47854 | -2/Testing | Found Vortex Chain Reactor 47859 | -2/Testing | Found Prototype Device 47859 | -2/Testing | Identified Exp. EM Disruption Field 48003 | -2/Testing | Discovered new exit (range 5) 48008 | -2/Testing | Identified exit to Section 7 48013 | -2/Testing | Entered Section 7 48195 | -2/Section 7 | Found Alien Artifact 48907 | -2/Section 7 | Build established: Hauler-Skirmisher 49166 | -2/Section 7 | Scanned by Researcher 49497 | -2/Section 7 | Spotted Alpha 7 49504 | -2/Section 7 | Spotted Alpha 7 49519 | -2/Section 7 | Destroyed Alpha 7 49552 | -2/Section 7 | First assault squad dispatched 49554 | -2/Section 7 | Destroyed Alpha 7 49557 | -2/Section 7 | System corruption reached 10% 49758 | -2/Section 7 | Entered Access 49758 | -1/Access | Evolved 2 slots: Propulsion x1, Utility x1 49821 | -1/Access | Build established: Hauler-Mutant 50361 | -1/Access | Intercept squad dispatched 50372 | -1/Access | Build established: Hauler-Skirmisher 50376 | -1/Access | Spotted Tracker 50377 | -1/Access | Spotted Tracker 50387 | -1/Access | Destroyed Tracker 50393 | -1/Access | Destroyed Tracker 50408 | -1/Access | Spotted Combat Programmer 50421 | -1/Access | Destroyed Combat Programmer 50424 | -1/Access | Spotted Combat Programmer 50433 | -1/Access | Destroyed Combat Programmer 50456 | -1/Access | Identified Integrated Dissipator 50456 | -1/Access | Installed Integrated Dissipator, increased core heat dissipation (+20) 50465 | -1/Access | Destroyed 7 combat bots 50508 | -1/Access | First assault squad dispatched 50917 | -1/Access | Garrison activated, responded to threat 50944 | -1/Access | Self-destructed Last Messages --------------- 50922_ U-05 Engineer destroyed. 50922_ W-44 Eye sends out distress signal. 50925_ Critical hit (Destroy). 50927_ Gamma Bomb intercepted. 50927_ Chain reaction triggered in Corrupted Unknown Reactor. 50929_ System corrupted: Enh. Quantum Rifle failed to cycle. 50932_ Gamma Bomb intercepted. 50934_ U-05 Engineer lays Concrete. 50934_ Adv. Sensor Array destroyed. 50935_ S-43 Plague destroyed. 50935_ U-05 Engineer lays Concrete. 50935_ K-01 Serf collects debris. 50936_ U-05 Engineer builds a Wall. 50938_ S-43 Plague destroyed. 50939_ Gamma Bomb intercepted. 50939_ K-01 Serf collects debris. 50941_ U-05 Engineer lays Concrete. 50942_ Gamma Bomb intercepted. 50943_ U-05 Engineer lays Concrete. 50943_ K-01 Serf collects debris. Map ----- +----------------------------------------------------+ | ?????????????????????????????????????????????????? | | ?????????????????????????????????????????????????? | | ?????????????????????????????????????????????????? | | ?????????????????????????????????????????????????? | | ?????????????????????????????????????????????????? | | ?????????????????????????????????????????????????? | | ?????????????????????????????????????????????????? | | ?????????????????????????????????????????????????? | | ?????????????????????????????????????????????????? | | ???????????????????????????????? !!??? ????????? | | ???????????????????????????????? !! ## #???????? | | ???????????????????????????????? != ## #???????? | | ???????????????????????????????? ## #???????? | | ????????????????????????????????! ## #???????? | | ??????????????####?????????????? ## #???????? | | ?????????????? ???#???????+? ## #???????? | | ?????????????# ! ??# ??????# ## #???????? | | ?????????????# ??# ??????# ! ?# #???????? | | ?????????????# ?#*??????# ## #???????? | | ?????????????# #%###???# ?# ######### | | ?????????????# # ####;##+#### | | ?????????????# =%= ]!!=%* | | ?????????????# * *=Qs! !=k | | ?????????????# *|!!==! | | ?????????????# =[ !!%!* % | | ?????????????# @ u=!%= | | ?????????????# %####################+## | | ?????????????# % ! ##????????????????????? | | ?????????????# ! !#?????????????????????? | | ?????????????# *! ?????????????????????? | | ?????????????# ! #?????????????????????? | | ?????????????# #?????????????????????? | | ?????????????# #?????????????????????? | | ?????????????########## +?????????????????????? | | ??????????????????????# ####?????????????????????? | | ??????????????????????# ?????????????????????????? | | ??????????????????????# ?????????????????????????? | | ??????????????????????# ?????????????????????????? | | ??????????????????????# ?????????????????????????? | | ?????????????????????? ??????????????????????????? | | ?????????????????????????????????????????????????? | | ?????????????????????????????????????????????????? | | ?????????????????????????????????????????????????? | | ?????????????????????????????????????????????????? | | ?????????????????????????????????????????????????? | | ?????????????????????????????????????????????????? | | ?????????????????????????????????????????????????? | | ?????????????????????????????????????????????????? | | ?????????????????????????????????????????????????? | | ?????????????????????????????????????????????????? | +----------------------------------------------------+ Best States ------------- Heat Dissipation 203 Coolant Potential 100 Energy Generation 65 Energy Capacity 1600 Matter Stores 600 Matter Capacity 600 Sight Range 22 Robot Scan Range 18 Terrain Scan Range 24 Terrain Scan Density 10 Jamming Range 14 Cloak Strength 3 Power Amplification 30 Additional Mass Support 12 EM Shielding 4 Armor Coverage 2700 Resistance: KI 30 Resistance: TH 50 Resistance: EX 15 Resistance: EM 75 Resistance: I 15 Resistance: S 15 Resistance: P 15 Core Shielding 30 Propulsion Shielding 66 Weapon Shielding 33 Point Defense Rating 240 Phase Shifting 15 Evasion (%) 50 Targeting Accuracy 24 Target Analysis 15 Core Analysis 8 Recoil Reduction 6 Particle Charging 27 Offensive Hacking 31 Defensive Hacking 10 Item Schematics ----------------- Cargo Storage Unit | -10/Materials | Hacked Lgt. Angular Momentum Engine | -7/Zion | Archive Gatling Laser | -7/Zion | Archive Hvy. Plasma Cannon | -7/Zion | Archive Mak. System Shield | -7/Zion | Archive Recoil Nullifier | -7/Zion | Archive Gravmag System | -7/Zion | Archive Hpw. Shock Rifle | -7/Zion | Archive Energy Filter | -7/Zion | Archive Adv. Melee Analysis Suite | -7/Zion | Archive Mak. Spear | -7/Zion | Archive Arc Thrower | -7/Zion | Archive Remote Datajack | -7/Zion | Archive Matter Filter | -7/Zion | Archive Drone Bay | -7/Zion | Archive Imp. KE Penetrator | -7/Zion | Archive Assault Drone Bay | -5/Zhirov | Free Exp. Heat Sink | -5/Zhirov | Free Exp. Optical Array | -5/Zhirov | Free Imp. Arc Thrower | -5/Zhirov | Free Imp. Q-thruster | -2/Testing | Archive Imp. Matter Neutralizer | -2/Testing | Archive Cld. Gravmag System | -2/Section 7 | Archive Exp. System Guard | -2/Section 7 | Archive Robot Schematics ------------------ R-06 Scavenger | -7/Zion | Archive X-62 Marksman | -7/Zion | Archive B-36 Bruiser | -7/Zion | Archive A-27 Freighter | -2/Testing | Archive G-73 Enforcer | -2/Testing | Archive K-01 Serf | -2/Section 7 | Archive A-02 Transporter | -2/Section 7 | Archive Fabricated ------------ Nothing Alien Tech Used ----------------- Integrated Reactor Transdimensional Reconstructor Subatomic Replicator Core Stripper Terrabomb Integrated Dissipator Achievements -------------- None Challenges ------------ None Game ------ Seed MyomerGravityShockpuncher Manual? 0 Play Time 04:10:31 Cumulative 349.1 hours Start 2023.05.10 @ 08:02:04 End 2023.05.12 @ 04:12:34 Sessions 17 Manual Loads 0 Difficulty Rogue Special Mode None Game No. 483 Rogue 456 Adventurer 4 Explorer 23 Win Type - Total 19 Types 14/0/2/2/1/0/0/0/0 Lore% 78 Gallery% 92 Achievement% 82 Wizard Run 0 Options --------- ASCII 0 Keyboard 1 Movement Numpad Keybinds 0 Fullscreen 2 Font 18/SmallcapsGlow Map View 76x50 Tactical HUD 1 Map Filters NONE Filters NONE Steam 1 RUN: 947a07eb-3107-4db6-892a-3e449f51aa95